{"text_format":"1","workbook":"xlsx","n_sheets":8,"sheets":["REF BAC GT","REF BAC PRO","REF CAP","Accueil","Nomenclature_cyclades","APSA BAC GT CYCL.","APSA BAC PRO CYCL.","APSA CAP CYCL."],"not_rendered":{"charts":0,"images":2,"macros":1,"external_links":0,"defined_names":45,"comments":3,"pivot_tables":0},"unopened":[],"bounds":{"document_bytes":16777216,"sheet_cells":100000,"rows_first":2000,"rows_last":500,"rows_between":2000,"halvings":0,"cell_chars":16384,"cell_head_chars":4096},"cells_cut":0,"cells_raw":0,"read":"whole","date_system":"1900"}

{"sheet":"REF BAC GT","index":0,"n_rows":112,"n_cols":59,"rows_kept":112,"cut":false,"hidden":false,"merged":[[0,54,5,54],[1,9,4,9],[0,7,5,7],[5,1,5,2],[109,3,109,6],[5,3,5,6],[4,5,4,6],[0,5,0,6],[0,3,4,3],[110,3,110,6],[111,3,111,6],[108,7,108,8],[109,7,109,8],[110,7,110,8],[111,7,111,8],[108,3,108,6]]}
[null,null,null,"BAC\nGT",null,"Légende du tableau des référentiels",null,"Ne pas\nsupprimer\nou déplacer\ncette colonne",null,"Tableau des référentiels à compléter (saisir exclusivement un chiffre entre 1 et 3 !)",null,null,null,null,null,null,null,null,null,null,null,null,null,null,null,null,null,null,null,null,null,null,null,null,null,null,null,null,null,null,null,null,null,null,null,null,null,null,null,null,null,null,null,null,"Ne rien inscrire dans cette colonne"]
[null,null,null,null,null,1,"Référentiel validé",null,null,"Ne pas\nsupprimer\nou déplacer\ncette colonne\n(première\ncolonne\ndes APSA)"]
[null,null,null,null,null,2,"Référentiel en attente de validation"]
[null,null,null,null,null,3,"Référentiel refusé ou en attente de modification"]
[null,null,null,null,null,"Seuls les référentiels avec les indices 1 et 2 seront pris en compte pour CYCLADES"]
[null,"Colonnes facultatives pouvant être modifiées, masquées ou supprimées",null,"Les colonnes D E F G ne doivent pas être supprimées, le titre ne doit pas être modifié. Les cellules sous le titre peuvent rester ''vides''. Utilisez le copié-collage spécial en ne sélectionnant que les valeurs (ou le texte) au moment d'une copie",null,null,null,null,"Infos >"]
[null,"CAHN","Adresse correspondant établissement","DEP","Type","Ville","Etablissement","UAI","Réf. Valid\n/ Total",null,null,null,null,null,null,null,null,null,null,null,null,null,null,null,null,null,null,null,null,null,null,null,null,null,null,null,null,null,null,null,null,null,null,null,null,null,null,null,null,null,null,null,null,null,null,"Validés","En attente","Refus /\nà modifier","Total"]
[null,null,null,null,null,null,null,null,null,null,null,null,null,null,null,null,null,null,null,null,null,null,null,null,null,null,null,null,null,null,null,null,null,null,null,null,null,null,null,null,null,null,null,null,null,null,null,null,null,null,null,null,null,null,null,{"$f":"COUNTIF(J8:BB8,1)","v":0},{"$f":"COUNTIF(J8:BB8,2)","v":0},{"$f":"COUNTIF(J8:BB8,3)","v":0},{"$f":"SUM(BD8:BF8)","v":0}]
[null,null,null,null,null,null,null,null,null,null,null,null,null,null,null,null,null,null,null,null,null,null,null,null,null,null,null,null,null,null,null,null,null,null,null,null,null,null,null,null,null,null,null,null,null,null,null,null,null,null,null,null,null,null,null,0,0,0,{"$f":"SUM(BD9:BF9)","v":0}]
[null,null,null,null,null,null,null,null,null,null,null,null,null,null,null,null,null,null,null,null,null,null,null,null,null,null,null,null,null,null,null,null,null,null,null,null,null,null,null,null,null,null,null,null,null,null,null,null,null,null,null,null,null,null,null,0,0,0,0]
[null,null,null,null,null,null,null,null,null,null,null,null,null,null,null,null,null,null,null,null,null,null,null,null,null,null,null,null,null,null,null,null,null,null,null,null,null,null,null,null,null,null,null,null,null,null,null,null,null,null,null,null,null,null,null,0,0,0,0]
[null,null,null,null,null,null,null,null,null,null,null,null,null,null,null,null,null,null,null,null,null,null,null,null,null,null,null,null,null,null,null,null,null,null,null,null,null,null,null,null,null,null,null,null,null,null,null,null,null,null,null,null,null,null,null,0,0,0,0]
[null,null,null,null,null,null,null,null,null,null,null,null,null,null,null,null,null,null,null,null,null,null,null,null,null,null,null,null,null,null,null,null,null,null,null,null,null,null,null,null,null,null,null,null,null,null,null,null,null,null,null,null,null,null,null,0,0,0,0]
[null,null,null,null,null,null,null,null,null,null,null,null,null,null,null,null,null,null,null,null,null,null,null,null,null,null,null,null,null,null,null,null,null,null,null,null,null,null,null,null,null,null,null,null,null,null,null,null,null,null,null,null,null,null,null,0,0,0,0]
[null,null,null,null,null,null,null,null,null,null,null,null,null,null,null,null,null,null,null,null,null,null,null,null,null,null,null,null,null,null,null,null,null,null,null,null,null,null,null,null,null,null,null,null,null,null,null,null,null,null,null,null,null,null,null,0,0,0,0]
[null,null,null,null,null,null,null,null,null,null,null,null,null,null,null,null,null,null,null,null,null,null,null,null,null,null,null,null,null,null,null,null,null,null,null,null,null,null,null,null,null,null,null,null,null,null,null,null,null,null,null,null,null,null,null,0,0,0,0]
[null,null,null,null,null,null,null,null,null,null,null,null,null,null,null,null,null,null,null,null,null,null,null,null,null,null,null,null,null,null,null,null,null,null,null,null,null,null,null,null,null,null,null,null,null,null,null,null,null,null,null,null,null,null,null,0,0,0,0]
[null,null,null,null,null,null,null,null,null,null,null,null,null,null,null,null,null,null,null,null,null,null,null,null,null,null,null,null,null,null,null,null,null,null,null,null,null,null,null,null,null,null,null,null,null,null,null,null,null,null,null,null,null,null,null,0,0,0,0]
[null,null,null,null,null,null,null,null,null,null,null,null,null,null,null,null,null,null,null,null,null,null,null,null,null,null,null,null,null,null,null,null,null,null,null,null,null,null,null,null,null,null,null,null,null,null,null,null,null,null,null,null,null,null,null,0,0,0,0]
[null,null,null,null,null,null,null,null,null,null,null,null,null,null,null,null,null,null,null,null,null,null,null,null,null,null,null,null,null,null,null,null,null,null,null,null,null,null,null,null,null,null,null,null,null,null,null,null,null,null,null,null,null,null,null,0,0,0,0]
[null,null,null,null,null,null,null,null,null,null,null,null,null,null,null,null,null,null,null,null,null,null,null,null,null,null,null,null,null,null,null,null,null,null,null,null,null,null,null,null,null,null,null,null,null,null,null,null,null,null,null,null,null,null,null,0,0,0,0]
[null,null,null,null,null,null,null,null,null,null,null,null,null,null,null,null,null,null,null,null,null,null,null,null,null,null,null,null,null,null,null,null,null,null,null,null,null,null,null,null,null,null,null,null,null,null,null,null,null,null,null,null,null,null,null,0,0,0,0]
[null,null,null,null,null,null,null,null,null,null,null,null,null,null,null,null,null,null,null,null,null,null,null,null,null,null,null,null,null,null,null,null,null,null,null,null,null,null,null,null,null,null,null,null,null,null,null,null,null,null,null,null,null,null,null,0,0,0,0]
[null,null,null,null,null,null,null,null,null,null,null,null,null,null,null,null,null,null,null,null,null,null,null,null,null,null,null,null,null,null,null,null,null,null,null,null,null,null,null,null,null,null,null,null,null,null,null,null,null,null,null,null,null,null,null,0,0,0,0]
[null,null,null,null,null,null,null,null,null,null,null,null,null,null,null,null,null,null,null,null,null,null,null,null,null,null,null,null,null,null,null,null,null,null,null,null,null,null,null,null,null,null,null,null,null,null,null,null,null,null,null,null,null,null,null,0,0,0,0]
[null,null,null,null,null,null,null,null,null,null,null,null,null,null,null,null,null,null,null,null,null,null,null,null,null,null,null,null,null,null,null,null,null,null,null,null,null,null,null,null,null,null,null,null,null,null,null,null,null,null,null,null,null,null,null,0,0,0,0]
[null,null,null,null,null,null,null,null,null,null,null,null,null,null,null,null,null,null,null,null,null,null,null,null,null,null,null,null,null,null,null,null,null,null,null,null,null,null,null,null,null,null,null,null,null,null,null,null,null,null,null,null,null,null,null,0,0,0,0]
[null,null,null,null,null,null,null,null,null,null,null,null,null,null,null,null,null,null,null,null,null,null,null,null,null,null,null,null,null,null,null,null,null,null,null,null,null,null,null,null,null,null,null,null,null,null,null,null,null,null,null,null,null,null,null,0,0,0,0]
[null,null,null,null,null,null,null,null,null,null,null,null,null,null,null,null,null,null,null,null,null,null,null,null,null,null,null,null,null,null,null,null,null,null,null,null,null,null,null,null,null,null,null,null,null,null,null,null,null,null,null,null,null,null,null,0,0,0,0]
[null,null,null,null,null,null,null,null,null,null,null,null,null,null,null,null,null,null,null,null,null,null,null,null,null,null,null,null,null,null,null,null,null,null,null,null,null,null,null,null,null,null,null,null,null,null,null,null,null,null,null,null,null,null,null,0,0,0,0]
[null,null,null,null,null,null,null,null,null,null,null,null,null,null,null,null,null,null,null,null,null,null,null,null,null,null,null,null,null,null,null,null,null,null,null,null,null,null,null,null,null,null,null,null,null,null,null,null,null,null,null,null,null,null,null,0,0,0,0]
[null,null,null,null,null,null,null,null,null,null,null,null,null,null,null,null,null,null,null,null,null,null,null,null,null,null,null,null,null,null,null,null,null,null,null,null,null,null,null,null,null,null,null,null,null,null,null,null,null,null,null,null,null,null,null,0,0,0,0]
[null,null,null,null,null,null,null,null,null,null,null,null,null,null,null,null,null,null,null,null,null,null,null,null,null,null,null,null,null,null,null,null,null,null,null,null,null,null,null,null,null,null,null,null,null,null,null,null,null,null,null,null,null,null,null,0,0,0,0]
[null,null,null,null,null,null,null,null,null,null,null,null,null,null,null,null,null,null,null,null,null,null,null,null,null,null,null,null,null,null,null,null,null,null,null,null,null,null,null,null,null,null,null,null,null,null,null,null,null,null,null,null,null,null,null,0,0,0,0]
[null,null,null,null,null,null,null,null,null,null,null,null,null,null,null,null,null,null,null,null,null,null,null,null,null,null,null,null,null,null,null,null,null,null,null,null,null,null,null,null,null,null,null,null,null,null,null,null,null,null,null,null,null,null,null,0,0,0,0]
[null,null,null,null,null,null,null,null,null,null,null,null,null,null,null,null,null,null,null,null,null,null,null,null,null,null,null,null,null,null,null,null,null,null,null,null,null,null,null,null,null,null,null,null,null,null,null,null,null,null,null,null,null,null,null,0,0,0,0]
[null,null,null,null,null,null,null,null,null,null,null,null,null,null,null,null,null,null,null,null,null,null,null,null,null,null,null,null,null,null,null,null,null,null,null,null,null,null,null,null,null,null,null,null,null,null,null,null,null,null,null,null,null,null,null,0,0,0,0]
[null,null,null,null,null,null,null,null,null,null,null,null,null,null,null,null,null,null,null,null,null,null,null,null,null,null,null,null,null,null,null,null,null,null,null,null,null,null,null,null,null,null,null,null,null,null,null,null,null,null,null,null,null,null,null,0,0,0,0]
[null,null,null,null,null,null,null,null,null,null,null,null,null,null,null,null,null,null,null,null,null,null,null,null,null,null,null,null,null,null,null,null,null,null,null,null,null,null,null,null,null,null,null,null,null,null,null,null,null,null,null,null,null,null,null,0,0,0,0]
[null,null,null,null,null,null,null,null,null,null,null,null,null,null,null,null,null,null,null,null,null,null,null,null,null,null,null,null,null,null,null,null,null,null,null,null,null,null,null,null,null,null,null,null,null,null,null,null,null,null,null,null,null,null,null,{"$f":"COUNTIF(J40:BB40,1)","v":0},{"$f":"COUNTIF(J40:BB40,2)","v":0},{"$f":"COUNTIF(J40:BB40,3)","v":0},0]
[null,null,null,null,null,null,null,null,null,null,null,null,null,null,null,null,null,null,null,null,null,null,null,null,null,null,null,null,null,null,null,null,null,null,null,null,null,null,null,null,null,null,null,null,null,null,null,null,null,null,null,null,null,null,null,0,0,0,0]
[null,null,null,null,null,null,null,null,null,null,null,null,null,null,null,null,null,null,null,null,null,null,null,null,null,null,null,null,null,null,null,null,null,null,null,null,null,null,null,null,null,null,null,null,null,null,null,null,null,null,null,null,null,null,null,0,0,0,0]
[null,null,null,null,null,null,null,null,null,null,null,null,null,null,null,null,null,null,null,null,null,null,null,null,null,null,null,null,null,null,null,null,null,null,null,null,null,null,null,null,null,null,null,null,null,null,null,null,null,null,null,null,null,null,null,0,0,0,0]
[null,null,null,null,null,null,null,null,null,null,null,null,null,null,null,null,null,null,null,null,null,null,null,null,null,null,null,null,null,null,null,null,null,null,null,null,null,null,null,null,null,null,null,null,null,null,null,null,null,null,null,null,null,null,null,0,0,0,0]
[null,null,null,null,null,null,null,null,null,null,null,null,null,null,null,null,null,null,null,null,null,null,null,null,null,null,null,null,null,null,null,null,null,null,null,null,null,null,null,null,null,null,null,null,null,null,null,null,null,null,null,null,null,null,null,0,0,0,0]
[null,null,null,null,null,null,null,null,null,null,null,null,null,null,null,null,null,null,null,null,null,null,null,null,null,null,null,null,null,null,null,null,null,null,null,null,null,null,null,null,null,null,null,null,null,null,null,null,null,null,null,null,null,null,null,0,0,0,0]
[null,null,null,null,null,null,null,null,null,null,null,null,null,null,null,null,null,null,null,null,null,null,null,null,null,null,null,null,null,null,null,null,null,null,null,null,null,null,null,null,null,null,null,null,null,null,null,null,null,null,null,null,null,null,null,0,0,0,0]
[null,null,null,null,null,null,null,null,null,null,null,null,null,null,null,null,null,null,null,null,null,null,null,null,null,null,null,null,null,null,null,null,null,null,null,null,null,null,null,null,null,null,null,null,null,null,null,null,null,null,null,null,null,null,null,0,0,0,0]
[null,null,null,null,null,null,null,null,null,null,null,null,null,null,null,null,null,null,null,null,null,null,null,null,null,null,null,null,null,null,null,null,null,null,null,null,null,null,null,null,null,null,null,null,null,null,null,null,null,null,null,null,null,null,null,0,0,0,0]
[null,null,null,null,null,null,null,null,null,null,null,null,null,null,null,null,null,null,null,null,null,null,null,null,null,null,null,null,null,null,null,null,null,null,null,null,null,null,null,null,null,null,null,null,null,null,null,null,null,null,null,null,null,null,null,0,0,0,0]
[null,null,null,null,null,null,null,null,null,null,null,null,null,null,null,null,null,null,null,null,null,null,null,null,null,null,null,null,null,null,null,null,null,null,null,null,null,null,null,null,null,null,null,null,null,null,null,null,null,null,null,null,null,null,null,0,0,0,0]
[null,null,null,null,null,null,null,null,null,null,null,null,null,null,null,null,null,null,null,null,null,null,null,null,null,null,null,null,null,null,null,null,null,null,null,null,null,null,null,null,null,null,null,null,null,null,null,null,null,null,null,null,null,null,null,0,0,0,0]
[null,null,null,null,null,null,null,null,null,null,null,null,null,null,null,null,null,null,null,null,null,null,null,null,null,null,null,null,null,null,null,null,null,null,null,null,null,null,null,null,null,null,null,null,null,null,null,null,null,null,null,null,null,null,null,0,0,0,0]
[null,null,null,null,null,null,null,null,null,null,null,null,null,null,null,null,null,null,null,null,null,null,null,null,null,null,null,null,null,null,null,null,null,null,null,null,null,null,null,null,null,null,null,null,null,null,null,null,null,null,null,null,null,null,null,0,0,0,0]
[null,null,null,null,null,null,null,null,null,null,null,null,null,null,null,null,null,null,null,null,null,null,null,null,null,null,null,null,null,null,null,null,null,null,null,null,null,null,null,null,null,null,null,null,null,null,null,null,null,null,null,null,null,null,null,0,0,0,0]
[null,null,null,null,null,null,null,null,null,null,null,null,null,null,null,null,null,null,null,null,null,null,null,null,null,null,null,null,null,null,null,null,null,null,null,null,null,null,null,null,null,null,null,null,null,null,null,null,null,null,null,null,null,null,null,0,0,0,0]
[null,null,null,null,null,null,null,null,null,null,null,null,null,null,null,null,null,null,null,null,null,null,null,null,null,null,null,null,null,null,null,null,null,null,null,null,null,null,null,null,null,null,null,null,null,null,null,null,null,null,null,null,null,null,null,0,0,0,0]
[null,null,null,null,null,null,null,null,null,null,null,null,null,null,null,null,null,null,null,null,null,null,null,null,null,null,null,null,null,null,null,null,null,null,null,null,null,null,null,null,null,null,null,null,null,null,null,null,null,null,null,null,null,null,null,0,0,0,0]
[null,null,null,null,null,null,null,null,null,null,null,null,null,null,null,null,null,null,null,null,null,null,null,null,null,null,null,null,null,null,null,null,null,null,null,null,null,null,null,null,null,null,null,null,null,null,null,null,null,null,null,null,null,null,null,0,0,0,0]
[null,null,null,null,null,null,null,null,null,null,null,null,null,null,null,null,null,null,null,null,null,null,null,null,null,null,null,null,null,null,null,null,null,null,null,null,null,null,null,null,null,null,null,null,null,null,null,null,null,null,null,null,null,null,null,0,0,0,0]
[null,null,null,null,null,null,null,null,null,null,null,null,null,null,null,null,null,null,null,null,null,null,null,null,null,null,null,null,null,null,null,null,null,null,null,null,null,null,null,null,null,null,null,null,null,null,null,null,null,null,null,null,null,null,null,0,0,0,0]
[null,null,null,null,null,null,null,null,null,null,null,null,null,null,null,null,null,null,null,null,null,null,null,null,null,null,null,null,null,null,null,null,null,null,null,null,null,null,null,null,null,null,null,null,null,null,null,null,null,null,null,null,null,null,null,0,0,0,0]
[null,null,null,null,null,null,null,null,null,null,null,null,null,null,null,null,null,null,null,null,null,null,null,null,null,null,null,null,null,null,null,null,null,null,null,null,null,null,null,null,null,null,null,null,null,null,null,null,null,null,null,null,null,null,null,0,0,0,0]
[null,null,null,null,null,null,null,null,null,null,null,null,null,null,null,null,null,null,null,null,null,null,null,null,null,null,null,null,null,null,null,null,null,null,null,null,null,null,null,null,null,null,null,null,null,null,null,null,null,null,null,null,null,null,null,0,0,0,0]
[null,null,null,null,null,null,null,null,null,null,null,null,null,null,null,null,null,null,null,null,null,null,null,null,null,null,null,null,null,null,null,null,null,null,null,null,null,null,null,null,null,null,null,null,null,null,null,null,null,null,null,null,null,null,null,0,0,0,0]
[null,null,null,null,null,null,null,null,null,null,null,null,null,null,null,null,null,null,null,null,null,null,null,null,null,null,null,null,null,null,null,null,null,null,null,null,null,null,null,null,null,null,null,null,null,null,null,null,null,null,null,null,null,null,null,0,0,0,0]
[null,null,null,null,null,null,null,null,null,null,null,null,null,null,null,null,null,null,null,null,null,null,null,null,null,null,null,null,null,null,null,null,null,null,null,null,null,null,null,null,null,null,null,null,null,null,null,null,null,null,null,null,null,null,null,0,0,0,0]
[null,null,null,null,null,null,null,null,null,null,null,null,null,null,null,null,null,null,null,null,null,null,null,null,null,null,null,null,null,null,null,null,null,null,null,null,null,null,null,null,null,null,null,null,null,null,null,null,null,null,null,null,null,null,null,0,0,0,0]
[null,null,null,null,null,null,null,null,null,null,null,null,null,null,null,null,null,null,null,null,null,null,null,null,null,null,null,null,null,null,null,null,null,null,null,null,null,null,null,null,null,null,null,null,null,null,null,null,null,null,null,null,null,null,null,0,0,0,0]
[null,null,null,null,null,null,null,null,null,null,null,null,null,null,null,null,null,null,null,null,null,null,null,null,null,null,null,null,null,null,null,null,null,null,null,null,null,null,null,null,null,null,null,null,null,null,null,null,null,null,null,null,null,null,null,0,0,0,0]
[null,null,null,null,null,null,null,null,null,null,null,null,null,null,null,null,null,null,null,null,null,null,null,null,null,null,null,null,null,null,null,null,null,null,null,null,null,null,null,null,null,null,null,null,null,null,null,null,null,null,null,null,null,null,null,0,0,0,0]
[null,null,null,null,null,null,null,null,null,null,null,null,null,null,null,null,null,null,null,null,null,null,null,null,null,null,null,null,null,null,null,null,null,null,null,null,null,null,null,null,null,null,null,null,null,null,null,null,null,null,null,null,null,null,null,{"$f":"COUNTIF(J72:BB72,1)","v":0},{"$f":"COUNTIF(J72:BB72,2)","v":0},{"$f":"COUNTIF(J72:BB72,3)","v":0},0]
[null,null,null,null,null,null,null,null,null,null,null,null,null,null,null,null,null,null,null,null,null,null,null,null,null,null,null,null,null,null,null,null,null,null,null,null,null,null,null,null,null,null,null,null,null,null,null,null,null,null,null,null,null,null,null,0,0,0,{"$f":"SUM(BD73:BF73)","v":0}]
[null,null,null,null,null,null,null,null,null,null,null,null,null,null,null,null,null,null,null,null,null,null,null,null,null,null,null,null,null,null,null,null,null,null,null,null,null,null,null,null,null,null,null,null,null,null,null,null,null,null,null,null,null,null,null,0,0,0,0]
[null,null,null,null,null,null,null,null,null,null,null,null,null,null,null,null,null,null,null,null,null,null,null,null,null,null,null,null,null,null,null,null,null,null,null,null,null,null,null,null,null,null,null,null,null,null,null,null,null,null,null,null,null,null,null,0,0,0,0]
[null,null,null,null,null,null,null,null,null,null,null,null,null,null,null,null,null,null,null,null,null,null,null,null,null,null,null,null,null,null,null,null,null,null,null,null,null,null,null,null,null,null,null,null,null,null,null,null,null,null,null,null,null,null,null,0,0,0,0]
[null,null,null,null,null,null,null,null,null,null,null,null,null,null,null,null,null,null,null,null,null,null,null,null,null,null,null,null,null,null,null,null,null,null,null,null,null,null,null,null,null,null,null,null,null,null,null,null,null,null,null,null,null,null,null,0,0,0,0]
[null,null,null,null,null,null,null,null,null,null,null,null,null,null,null,null,null,null,null,null,null,null,null,null,null,null,null,null,null,null,null,null,null,null,null,null,null,null,null,null,null,null,null,null,null,null,null,null,null,null,null,null,null,null,null,0,0,0,0]
[null,null,null,null,null,null,null,null,null,null,null,null,null,null,null,null,null,null,null,null,null,null,null,null,null,null,null,null,null,null,null,null,null,null,null,null,null,null,null,null,null,null,null,null,null,null,null,null,null,null,null,null,null,null,null,0,0,0,0]
[null,null,null,null,null,null,null,null,null,null,null,null,null,null,null,null,null,null,null,null,null,null,null,null,null,null,null,null,null,null,null,null,null,null,null,null,null,null,null,null,null,null,null,null,null,null,null,null,null,null,null,null,null,null,null,0,0,0,0]
[null,null,null,null,null,null,null,null,null,null,null,null,null,null,null,null,null,null,null,null,null,null,null,null,null,null,null,null,null,null,null,null,null,null,null,null,null,null,null,null,null,null,null,null,null,null,null,null,null,null,null,null,null,null,null,0,0,0,0]
[null,null,null,null,null,null,null,null,null,null,null,null,null,null,null,null,null,null,null,null,null,null,null,null,null,null,null,null,null,null,null,null,null,null,null,null,null,null,null,null,null,null,null,null,null,null,null,null,null,null,null,null,null,null,null,0,0,0,0]
[null,null,null,null,null,null,null,null,null,null,null,null,null,null,null,null,null,null,null,null,null,null,null,null,null,null,null,null,null,null,null,null,null,null,null,null,null,null,null,null,null,null,null,null,null,null,null,null,null,null,null,null,null,null,null,0,0,0,0]
[null,null,null,null,null,null,null,null,null,null,null,null,null,null,null,null,null,null,null,null,null,null,null,null,null,null,null,null,null,null,null,null,null,null,null,null,null,null,null,null,null,null,null,null,null,null,null,null,null,null,null,null,null,null,null,0,0,0,0]
[null,null,null,null,null,null,null,null,null,null,null,null,null,null,null,null,null,null,null,null,null,null,null,null,null,null,null,null,null,null,null,null,null,null,null,null,null,null,null,null,null,null,null,null,null,null,null,null,null,null,null,null,null,null,null,{"$f":"COUNTIF(J85:BB85,1)","v":0},{"$f":"COUNTIF(J85:BB85,2)","v":0},{"$f":"COUNTIF(J85:BB85,3)","v":0},{"$f":"SUM(BD85:BF85)","v":0}]
[null,null,null,null,null,null,null,null,null,null,null,null,null,null,null,null,null,null,null,null,null,null,null,null,null,null,null,null,null,null,null,null,null,null,null,null,null,null,null,null,null,null,null,null,null,null,null,null,null,null,null,null,null,null,null,0,0,0,0]
[null,null,null,null,null,null,null,null,null,null,null,null,null,null,null,null,null,null,null,null,null,null,null,null,null,null,null,null,null,null,null,null,null,null,null,null,null,null,null,null,null,null,null,null,null,null,null,null,null,null,null,null,null,null,null,0,0,0,0]
[null,null,null,null,null,null,null,null,null,null,null,null,null,null,null,null,null,null,null,null,null,null,null,null,null,null,null,null,null,null,null,null,null,null,null,null,null,null,null,null,null,null,null,null,null,null,null,null,null,null,null,null,null,null,null,0,0,0,0]
[null,null,null,null,null,null,null,null,null,null,null,null,null,null,null,null,null,null,null,null,null,null,null,null,null,null,null,null,null,null,null,null,null,null,null,null,null,null,null,null,null,null,null,null,null,null,null,null,null,null,null,null,null,null,null,0,0,0,0]
[null,null,null,null,null,null,null,null,null,null,null,null,null,null,null,null,null,null,null,null,null,null,null,null,null,null,null,null,null,null,null,null,null,null,null,null,null,null,null,null,null,null,null,null,null,null,null,null,null,null,null,null,null,null,null,0,0,0,0]
[null,null,null,null,null,null,null,null,null,null,null,null,null,null,null,null,null,null,null,null,null,null,null,null,null,null,null,null,null,null,null,null,null,null,null,null,null,null,null,null,null,null,null,null,null,null,null,null,null,null,null,null,null,null,null,0,0,0,0]
[null,null,null,null,null,null,null,null,null,null,null,null,null,null,null,null,null,null,null,null,null,null,null,null,null,null,null,null,null,null,null,null,null,null,null,null,null,null,null,null,null,null,null,null,null,null,null,null,null,null,null,null,null,null,null,0,0,0,0]
[null,null,null,null,null,null,null,null,null,null,null,null,null,null,null,null,null,null,null,null,null,null,null,null,null,null,null,null,null,null,null,null,null,null,null,null,null,null,null,null,null,null,null,null,null,null,null,null,null,null,null,null,null,null,null,0,0,0,0]
[null,null,null,null,null,null,null,null,null,null,null,null,null,null,null,null,null,null,null,null,null,null,null,null,null,null,null,null,null,null,null,null,null,null,null,null,null,null,null,null,null,null,null,null,null,null,null,null,null,null,null,null,null,null,null,0,0,0,0]
[null,null,null,null,null,null,null,null,null,null,null,null,null,null,null,null,null,null,null,null,null,null,null,null,null,null,null,null,null,null,null,null,null,null,null,null,null,null,null,null,null,null,null,null,null,null,null,null,null,null,null,null,null,null,null,0,0,0,0]
[null,null,null,null,null,null,null,null,null,null,null,null,null,null,null,null,null,null,null,null,null,null,null,null,null,null,null,null,null,null,null,null,null,null,null,null,null,null,null,null,null,null,null,null,null,null,null,null,null,null,null,null,null,null,null,0,0,0,0]
[null,null,null,null,null,null,null,null,null,null,null,null,null,null,null,null,null,null,null,null,null,null,null,null,null,null,null,null,null,null,null,null,null,null,null,null,null,null,null,null,null,null,null,null,null,null,null,null,null,null,null,null,null,null,null,0,0,0,0]
[null,null,null,null,null,null,null,null,null,null,null,null,null,null,null,null,null,null,null,null,null,null,null,null,null,null,null,null,null,null,null,null,null,null,null,null,null,null,null,null,null,null,null,null,null,null,null,null,null,null,null,null,null,null,null,0,0,0,0]
[null,null,null,null,null,null,null,null,null,null,null,null,null,null,null,null,null,null,null,null,null,null,null,null,null,null,null,null,null,null,null,null,null,null,null,null,null,null,null,null,null,null,null,null,null,null,null,null,null,null,null,null,null,null,null,0,0,0,0]
[null,null,null,null,null,null,null,null,null,null,null,null,null,null,null,null,null,null,null,null,null,null,null,null,null,null,null,null,null,null,null,null,null,null,null,null,null,null,null,null,null,null,null,null,null,null,null,null,null,null,null,null,null,null,null,{"$f":"COUNTIF(J100:BB100,1)","v":0},{"$f":"COUNTIF(J100:BB100,2)","v":0},{"$f":"COUNTIF(J100:BB100,3)","v":0},0]
[null,null,null,null,null,null,null,null,null,null,null,null,null,null,null,null,null,null,null,null,null,null,null,null,null,null,null,null,null,null,null,null,null,null,null,null,null,null,null,null,null,null,null,null,null,null,null,null,null,null,null,null,null,null,null,0,0,0,0]
[null,null,null,null,null,null,null,null,null,null,null,null,null,null,null,null,null,null,null,null,null,null,null,null,null,null,null,null,null,null,null,null,null,null,null,null,null,null,null,null,null,null,null,null,null,null,null,null,null,null,null,null,null,null,null,0,0,0,0]
[null,null,null,null,null,null,null,null,null,null,null,null,null,null,null,null,null,null,null,null,null,null,null,null,null,null,null,null,null,null,null,null,null,null,null,null,null,null,null,null,null,null,null,null,null,null,null,null,null,null,null,null,null,null,null,0,0,0,0]
[null,null,null,null,null,null,null,null,null,null,null,null,null,null,null,null,null,null,null,null,null,null,null,null,null,null,null,null,null,null,null,null,null,null,null,null,null,null,null,null,null,null,null,null,null,null,null,null,null,null,null,null,null,null,null,0,0,0,0]
[null,null,null,null,null,null,null,null,null,null,null,null,null,null,null,null,null,null,null,null,null,null,null,null,null,null,null,null,null,null,null,null,null,null,null,null,null,null,null,null,null,null,null,null,null,null,null,null,null,null,null,null,null,null,null,0,0,0,0]
[null,null,null,null,null,null,null,null,null,null,null,null,null,null,null,null,null,null,null,null,null,null,null,null,null,null,null,null,null,null,null,null,null,null,null,null,null,null,null,null,null,null,null,null,null,null,null,null,null,null,null,null,null,null,null,0,0,0,0]
[null,null,null,null,null,null,null,null,null,null,null,null,null,null,null,null,null,null,null,null,null,null,null,null,null,null,null,null,null,null,null,null,null,null,null,null,null,null,null,null,null,null,null,null,null,null,null,null,null,null,null,null,null,null,null,0,0,0,0]
["Ne rien inscrire dans cette ligne"]
[null,null,null,{"$f":"\"Nombre total de référentiels validés : \"&SUM(J109:BB109)","v":"Nombre total de référentiels validés : 0"},null,null,null,"Validés",null,{"$f":"COUNTIF(J8:J107,1)","v":0},0,0,0,0,0,0,0,0,0,0,0,0,0,0,0,0,0,0,0,0,0,0,0,0,0,0,0,0,0,0,0,0,0,0,0,0,0,{"$f":"COUNTIF(AV8:AV107,1)","v":0},{"$f":"COUNTIF(AW8:AW107,1)","v":0},0,0,0,0,0]
[null,null,null,{"$f":"\"Nombre total de référentiels en attente : \"&SUM(J110:BB110)","v":"Nombre total de référentiels en attente : 0"},null,null,null,"En attente",null,{"$f":"COUNTIF(J8:J107,2)","v":0},0,0,0,0,0,0,0,0,0,0,0,0,0,0,0,0,0,0,0,0,0,0,0,0,0,0,0,0,0,0,0,0,0,0,0,0,0,{"$f":"COUNTIF(AV8:AV107,2)","v":0},{"$f":"COUNTIF(AW8:AW107,2)","v":0},0,0,0,0,0]
[null,null,null,{"$f":"\"Nombre total de référentiels refusés ou à modifier : \"&SUM(J111:BB111)","v":"Nombre total de référentiels refusés ou à modifier : 0"},null,null,null,"Refus / à modifier",null,{"$f":"COUNTIF(J8:J107,3)","v":0},0,0,0,0,0,0,0,0,0,0,0,0,0,0,0,0,0,0,0,0,0,0,0,0,0,0,0,0,0,0,0,0,0,0,0,0,0,{"$f":"COUNTIF(AV8:AV107,3)","v":0},{"$f":"COUNTIF(AW8:AW107,3)","v":0},0,0,0,0,0]
[null,null,null,{"$f":"\"Nombre total de référentiels : \"&SUM(J112:BB112)","v":"Nombre total de référentiels : 0"},null,null,null,"TOTAL",null,{"$f":"SUM(J109:J111)","v":0},{"$f":"SUM(K109:K111)","v":0},0,0,0,0,0,0,0,0,0,0,0,0,0,0,0,0,0,0,0,0,0,0,0,0,0,0,0,0,0,0,0,0,0,0,0,0,{"$f":"SUM(AV109:AV111)","v":0},0,0,0,0,0,0]

{"sheet":"REF BAC PRO","index":1,"n_rows":112,"n_cols":59,"rows_kept":112,"cut":false,"hidden":false,"merged":[[0,3,4,3],[5,1,5,2],[111,7,111,8],[0,54,5,54],[108,7,108,8],[109,7,109,8],[110,7,110,8],[1,9,4,9],[0,7,5,7],[108,3,108,6],[109,3,109,6],[110,3,110,6],[111,3,111,6],[4,5,4,6],[5,3,5,6],[0,5,0,6]]}
[null,null,null,"BAC\nPRO",null,"Légende du tableau des référentiels",null,"Ne pas\nsupprimer\nou déplacer\ncette colonne",null,"Tableau des référentiels à compléter (saisir exclusivement un chiffre entre 1 et 3 !)",null,null,null,null,null,null,null,null,null,null,null,null,null,null,null,null,null,null,null,null,null,null,null,null,null,null,null,null,null,null,null,null,null,null,null,null,null,null,null,null,null,null,null,null,"Ne rien inscrire dans cette colonne"]
[null,null,null,null,null,1,"Référentiel validé",null,null,"Ne pas\nsupprimer\nou déplacer\ncette colonne\n(première\ncolonne\ndes APSA)"]
[null,null,null,null,null,2,"Référentiel en attente de validation"]
[null,null,null,null,null,3,"Référentiel refusé ou en attente de modification"]
[null,null,null,null,null,"Seuls les référentiels avec les indices 1 et 2 seront pris en compte pour CYCLADES"]
[null,"Colonnes facultatives pouvant être modifiées, masquées ou supprimées",null,"Les colonnes D E F G ne doivent pas être supprimées, le titre ne doit pas être modifié. Les cellules sous le titre peuvent rester ''vides''. Utilisez le copié-collage spécial en ne sélectionnant que les valeurs (ou le texte) au moment d'une copie",null,null,null,null,"Infos >"]
[null,"CAHN","Adresse correspondant établissement","DEP","Type","Ville","Etablissement","UAI","Réf. Valid\n/ Total",null,null,null,null,null,null,null,null,null,null,null,null,null,null,null,null,null,null,null,null,null,null,null,null,null,null,null,null,null,null,null,null,null,null,null,null,null,null,null,null,null,null,null,null,null,null,"Validés","En attente","Refus /\nà modifier","Total"]
[null,null,null,null,null,null,null,null,null,null,null,null,null,null,null,null,null,null,null,null,null,null,null,null,null,null,null,null,null,null,null,null,null,null,null,null,null,null,null,null,null,null,null,null,null,null,null,null,null,null,null,null,null,null,null,{"$f":"COUNTIF(J8:BB8,1)","v":0},{"$f":"COUNTIF(J8:BB8,2)","v":0},{"$f":"COUNTIF(J8:BB8,3)","v":0},{"$f":"SUM(BD8:BF8)","v":0}]
[null,null,null,null,null,null,null,null,null,null,null,null,null,null,null,null,null,null,null,null,null,null,null,null,null,null,null,null,null,null,null,null,null,null,null,null,null,null,null,null,null,null,null,null,null,null,null,null,null,null,null,null,null,null,null,{"$f":"COUNTIF(J9:BB9,1)","v":0},{"$f":"COUNTIF(J9:BB9,2)","v":0},{"$f":"COUNTIF(J9:BB9,3)","v":0},{"$f":"SUM(BD9:BF9)","v":0}]
[null,null,null,null,null,null,null,null,null,null,null,null,null,null,null,null,null,null,null,null,null,null,null,null,null,null,null,null,null,null,null,null,null,null,null,null,null,null,null,null,null,null,null,null,null,null,null,null,null,null,null,null,null,null,null,0,0,0,0]
[null,null,null,null,null,null,null,null,null,null,null,null,null,null,null,null,null,null,null,null,null,null,null,null,null,null,null,null,null,null,null,null,null,null,null,null,null,null,null,null,null,null,null,null,null,null,null,null,null,null,null,null,null,null,null,0,0,0,0]
[null,null,null,null,null,null,null,null,null,null,null,null,null,null,null,null,null,null,null,null,null,null,null,null,null,null,null,null,null,null,null,null,null,null,null,null,null,null,null,null,null,null,null,null,null,null,null,null,null,null,null,null,null,null,null,0,0,0,0]
[null,null,null,null,null,null,null,null,null,null,null,null,null,null,null,null,null,null,null,null,null,null,null,null,null,null,null,null,null,null,null,null,null,null,null,null,null,null,null,null,null,null,null,null,null,null,null,null,null,null,null,null,null,null,null,0,0,0,0]
[null,null,null,null,null,null,null,null,null,null,null,null,null,null,null,null,null,null,null,null,null,null,null,null,null,null,null,null,null,null,null,null,null,null,null,null,null,null,null,null,null,null,null,null,null,null,null,null,null,null,null,null,null,null,null,0,0,0,0]
[null,null,null,null,null,null,null,null,null,null,null,null,null,null,null,null,null,null,null,null,null,null,null,null,null,null,null,null,null,null,null,null,null,null,null,null,null,null,null,null,null,null,null,null,null,null,null,null,null,null,null,null,null,null,null,0,0,0,0]
[null,null,null,null,null,null,null,null,null,null,null,null,null,null,null,null,null,null,null,null,null,null,null,null,null,null,null,null,null,null,null,null,null,null,null,null,null,null,null,null,null,null,null,null,null,null,null,null,null,null,null,null,null,null,null,0,0,0,0]
[null,null,null,null,null,null,null,null,null,null,null,null,null,null,null,null,null,null,null,null,null,null,null,null,null,null,null,null,null,null,null,null,null,null,null,null,null,null,null,null,null,null,null,null,null,null,null,null,null,null,null,null,null,null,null,0,0,0,0]
[null,null,null,null,null,null,null,null,null,null,null,null,null,null,null,null,null,null,null,null,null,null,null,null,null,null,null,null,null,null,null,null,null,null,null,null,null,null,null,null,null,null,null,null,null,null,null,null,null,null,null,null,null,null,null,0,0,0,0]
[null,null,null,null,null,null,null,null,null,null,null,null,null,null,null,null,null,null,null,null,null,null,null,null,null,null,null,null,null,null,null,null,null,null,null,null,null,null,null,null,null,null,null,null,null,null,null,null,null,null,null,null,null,null,null,0,0,0,0]
[null,null,null,null,null,null,null,null,null,null,null,null,null,null,null,null,null,null,null,null,null,null,null,null,null,null,null,null,null,null,null,null,null,null,null,null,null,null,null,null,null,null,null,null,null,null,null,null,null,null,null,null,null,null,null,0,0,0,0]
[null,null,null,null,null,null,null,null,null,null,null,null,null,null,null,null,null,null,null,null,null,null,null,null,null,null,null,null,null,null,null,null,null,null,null,null,null,null,null,null,null,null,null,null,null,null,null,null,null,null,null,null,null,null,null,0,0,0,0]
[null,null,null,null,null,null,null,null,null,null,null,null,null,null,null,null,null,null,null,null,null,null,null,null,null,null,null,null,null,null,null,null,null,null,null,null,null,null,null,null,null,null,null,null,null,null,null,null,null,null,null,null,null,null,null,0,0,0,0]
[null,null,null,null,null,null,null,null,null,null,null,null,null,null,null,null,null,null,null,null,null,null,null,null,null,null,null,null,null,null,null,null,null,null,null,null,null,null,null,null,null,null,null,null,null,null,null,null,null,null,null,null,null,null,null,0,0,0,0]
[null,null,null,null,null,null,null,null,null,null,null,null,null,null,null,null,null,null,null,null,null,null,null,null,null,null,null,null,null,null,null,null,null,null,null,null,null,null,null,null,null,null,null,null,null,null,null,null,null,null,null,null,null,null,null,0,0,0,0]
[null,null,null,null,null,null,null,null,null,null,null,null,null,null,null,null,null,null,null,null,null,null,null,null,null,null,null,null,null,null,null,null,null,null,null,null,null,null,null,null,null,null,null,null,null,null,null,null,null,null,null,null,null,null,null,0,0,0,0]
[null,null,null,null,null,null,null,null,null,null,null,null,null,null,null,null,null,null,null,null,null,null,null,null,null,null,null,null,null,null,null,null,null,null,null,null,null,null,null,null,null,null,null,null,null,null,null,null,null,null,null,null,null,null,null,0,0,0,0]
[null,null,null,null,null,null,null,null,null,null,null,null,null,null,null,null,null,null,null,null,null,null,null,null,null,null,null,null,null,null,null,null,null,null,null,null,null,null,null,null,null,null,null,null,null,null,null,null,null,null,null,null,null,null,null,0,0,0,0]
[null,null,null,null,null,null,null,null,null,null,null,null,null,null,null,null,null,null,null,null,null,null,null,null,null,null,null,null,null,null,null,null,null,null,null,null,null,null,null,null,null,null,null,null,null,null,null,null,null,null,null,null,null,null,null,0,0,0,0]
[null,null,null,null,null,null,null,null,null,null,null,null,null,null,null,null,null,null,null,null,null,null,null,null,null,null,null,null,null,null,null,null,null,null,null,null,null,null,null,null,null,null,null,null,null,null,null,null,null,null,null,null,null,null,null,0,0,0,0]
[null,null,null,null,null,null,null,null,null,null,null,null,null,null,null,null,null,null,null,null,null,null,null,null,null,null,null,null,null,null,null,null,null,null,null,null,null,null,null,null,null,null,null,null,null,null,null,null,null,null,null,null,null,null,null,0,0,0,0]
[null,null,null,null,null,null,null,null,null,null,null,null,null,null,null,null,null,null,null,null,null,null,null,null,null,null,null,null,null,null,null,null,null,null,null,null,null,null,null,null,null,null,null,null,null,null,null,null,null,null,null,null,null,null,null,0,0,0,0]
[null,null,null,null,null,null,null,null,null,null,null,null,null,null,null,null,null,null,null,null,null,null,null,null,null,null,null,null,null,null,null,null,null,null,null,null,null,null,null,null,null,null,null,null,null,null,null,null,null,null,null,null,null,null,null,0,0,0,0]
[null,null,null,null,null,null,null,null,null,null,null,null,null,null,null,null,null,null,null,null,null,null,null,null,null,null,null,null,null,null,null,null,null,null,null,null,null,null,null,null,null,null,null,null,null,null,null,null,null,null,null,null,null,null,null,0,0,0,0]
[null,null,null,null,null,null,null,null,null,null,null,null,null,null,null,null,null,null,null,null,null,null,null,null,null,null,null,null,null,null,null,null,null,null,null,null,null,null,null,null,null,null,null,null,null,null,null,null,null,null,null,null,null,null,null,0,0,0,0]
[null,null,null,null,null,null,null,null,null,null,null,null,null,null,null,null,null,null,null,null,null,null,null,null,null,null,null,null,null,null,null,null,null,null,null,null,null,null,null,null,null,null,null,null,null,null,null,null,null,null,null,null,null,null,null,0,0,0,0]
[null,null,null,null,null,null,null,null,null,null,null,null,null,null,null,null,null,null,null,null,null,null,null,null,null,null,null,null,null,null,null,null,null,null,null,null,null,null,null,null,null,null,null,null,null,null,null,null,null,null,null,null,null,null,null,0,0,0,0]
[null,null,null,null,null,null,null,null,null,null,null,null,null,null,null,null,null,null,null,null,null,null,null,null,null,null,null,null,null,null,null,null,null,null,null,null,null,null,null,null,null,null,null,null,null,null,null,null,null,null,null,null,null,null,null,0,0,0,0]
[null,null,null,null,null,null,null,null,null,null,null,null,null,null,null,null,null,null,null,null,null,null,null,null,null,null,null,null,null,null,null,null,null,null,null,null,null,null,null,null,null,null,null,null,null,null,null,null,null,null,null,null,null,null,null,0,0,0,0]
[null,null,null,null,null,null,null,null,null,null,null,null,null,null,null,null,null,null,null,null,null,null,null,null,null,null,null,null,null,null,null,null,null,null,null,null,null,null,null,null,null,null,null,null,null,null,null,null,null,null,null,null,null,null,null,0,0,0,0]
[null,null,null,null,null,null,null,null,null,null,null,null,null,null,null,null,null,null,null,null,null,null,null,null,null,null,null,null,null,null,null,null,null,null,null,null,null,null,null,null,null,null,null,null,null,null,null,null,null,null,null,null,null,null,null,0,0,0,0]
[null,null,null,null,null,null,null,null,null,null,null,null,null,null,null,null,null,null,null,null,null,null,null,null,null,null,null,null,null,null,null,null,null,null,null,null,null,null,null,null,null,null,null,null,null,null,null,null,null,null,null,null,null,null,null,0,0,0,0]
[null,null,null,null,null,null,null,null,null,null,null,null,null,null,null,null,null,null,null,null,null,null,null,null,null,null,null,null,null,null,null,null,null,null,null,null,null,null,null,null,null,null,null,null,null,null,null,null,null,null,null,null,null,null,null,0,0,0,0]
[null,null,null,null,null,null,null,null,null,null,null,null,null,null,null,null,null,null,null,null,null,null,null,null,null,null,null,null,null,null,null,null,null,null,null,null,null,null,null,null,null,null,null,null,null,null,null,null,null,null,null,null,null,null,null,0,0,0,0]
[null,null,null,null,null,null,null,null,null,null,null,null,null,null,null,null,null,null,null,null,null,null,null,null,null,null,null,null,null,null,null,null,null,null,null,null,null,null,null,null,null,null,null,null,null,null,null,null,null,null,null,null,null,null,null,0,0,0,0]
[null,null,null,null,null,null,null,null,null,null,null,null,null,null,null,null,null,null,null,null,null,null,null,null,null,null,null,null,null,null,null,null,null,null,null,null,null,null,null,null,null,null,null,null,null,null,null,null,null,null,null,null,null,null,null,0,0,0,0]
[null,null,null,null,null,null,null,null,null,null,null,null,null,null,null,null,null,null,null,null,null,null,null,null,null,null,null,null,null,null,null,null,null,null,null,null,null,null,null,null,null,null,null,null,null,null,null,null,null,null,null,null,null,null,null,0,0,0,0]
[null,null,null,null,null,null,null,null,null,null,null,null,null,null,null,null,null,null,null,null,null,null,null,null,null,null,null,null,null,null,null,null,null,null,null,null,null,null,null,null,null,null,null,null,null,null,null,null,null,null,null,null,null,null,null,0,0,0,0]
[null,null,null,null,null,null,null,null,null,null,null,null,null,null,null,null,null,null,null,null,null,null,null,null,null,null,null,null,null,null,null,null,null,null,null,null,null,null,null,null,null,null,null,null,null,null,null,null,null,null,null,null,null,null,null,0,0,0,0]
[null,null,null,null,null,null,null,null,null,null,null,null,null,null,null,null,null,null,null,null,null,null,null,null,null,null,null,null,null,null,null,null,null,null,null,null,null,null,null,null,null,null,null,null,null,null,null,null,null,null,null,null,null,null,null,0,0,0,0]
[null,null,null,null,null,null,null,null,null,null,null,null,null,null,null,null,null,null,null,null,null,null,null,null,null,null,null,null,null,null,null,null,null,null,null,null,null,null,null,null,null,null,null,null,null,null,null,null,null,null,null,null,null,null,null,0,0,0,0]
[null,null,null,null,null,null,null,null,null,null,null,null,null,null,null,null,null,null,null,null,null,null,null,null,null,null,null,null,null,null,null,null,null,null,null,null,null,null,null,null,null,null,null,null,null,null,null,null,null,null,null,null,null,null,null,0,0,0,0]
[null,null,null,null,null,null,null,null,null,null,null,null,null,null,null,null,null,null,null,null,null,null,null,null,null,null,null,null,null,null,null,null,null,null,null,null,null,null,null,null,null,null,null,null,null,null,null,null,null,null,null,null,null,null,null,0,0,0,0]
[null,null,null,null,null,null,null,null,null,null,null,null,null,null,null,null,null,null,null,null,null,null,null,null,null,null,null,null,null,null,null,null,null,null,null,null,null,null,null,null,null,null,null,null,null,null,null,null,null,null,null,null,null,null,null,0,0,0,0]
[null,null,null,null,null,null,null,null,null,null,null,null,null,null,null,null,null,null,null,null,null,null,null,null,null,null,null,null,null,null,null,null,null,null,null,null,null,null,null,null,null,null,null,null,null,null,null,null,null,null,null,null,null,null,null,0,0,0,0]
[null,null,null,null,null,null,null,null,null,null,null,null,null,null,null,null,null,null,null,null,null,null,null,null,null,null,null,null,null,null,null,null,null,null,null,null,null,null,null,null,null,null,null,null,null,null,null,null,null,null,null,null,null,null,null,0,0,0,0]
[null,null,null,null,null,null,null,null,null,null,null,null,null,null,null,null,null,null,null,null,null,null,null,null,null,null,null,null,null,null,null,null,null,null,null,null,null,null,null,null,null,null,null,null,null,null,null,null,null,null,null,null,null,null,null,0,0,0,0]
[null,null,null,null,null,null,null,null,null,null,null,null,null,null,null,null,null,null,null,null,null,null,null,null,null,null,null,null,null,null,null,null,null,null,null,null,null,null,null,null,null,null,null,null,null,null,null,null,null,null,null,null,null,null,null,0,0,0,0]
[null,null,null,null,null,null,null,null,null,null,null,null,null,null,null,null,null,null,null,null,null,null,null,null,null,null,null,null,null,null,null,null,null,null,null,null,null,null,null,null,null,null,null,null,null,null,null,null,null,null,null,null,null,null,null,0,0,0,0]
[null,null,null,null,null,null,null,null,null,null,null,null,null,null,null,null,null,null,null,null,null,null,null,null,null,null,null,null,null,null,null,null,null,null,null,null,null,null,null,null,null,null,null,null,null,null,null,null,null,null,null,null,null,null,null,0,0,0,0]
[null,null,null,null,null,null,null,null,null,null,null,null,null,null,null,null,null,null,null,null,null,null,null,null,null,null,null,null,null,null,null,null,null,null,null,null,null,null,null,null,null,null,null,null,null,null,null,null,null,null,null,null,null,null,null,0,0,0,0]
[null,null,null,null,null,null,null,null,null,null,null,null,null,null,null,null,null,null,null,null,null,null,null,null,null,null,null,null,null,null,null,null,null,null,null,null,null,null,null,null,null,null,null,null,null,null,null,null,null,null,null,null,null,null,null,0,0,0,0]
[null,null,null,null,null,null,null,null,null,null,null,null,null,null,null,null,null,null,null,null,null,null,null,null,null,null,null,null,null,null,null,null,null,null,null,null,null,null,null,null,null,null,null,null,null,null,null,null,null,null,null,null,null,null,null,0,0,0,0]
[null,null,null,null,null,null,null,null,null,null,null,null,null,null,null,null,null,null,null,null,null,null,null,null,null,null,null,null,null,null,null,null,null,null,null,null,null,null,null,null,null,null,null,null,null,null,null,null,null,null,null,null,null,null,null,0,0,0,0]
[null,null,null,null,null,null,null,null,null,null,null,null,null,null,null,null,null,null,null,null,null,null,null,null,null,null,null,null,null,null,null,null,null,null,null,null,null,null,null,null,null,null,null,null,null,null,null,null,null,null,null,null,null,null,null,0,0,0,0]
[null,null,null,null,null,null,null,null,null,null,null,null,null,null,null,null,null,null,null,null,null,null,null,null,null,null,null,null,null,null,null,null,null,null,null,null,null,null,null,null,null,null,null,null,null,null,null,null,null,null,null,null,null,null,null,0,0,0,0]
[null,null,null,null,null,null,null,null,null,null,null,null,null,null,null,null,null,null,null,null,null,null,null,null,null,null,null,null,null,null,null,null,null,null,null,null,null,null,null,null,null,null,null,null,null,null,null,null,null,null,null,null,null,null,null,0,0,0,0]
[null,null,null,null,null,null,null,null,null,null,null,null,null,null,null,null,null,null,null,null,null,null,null,null,null,null,null,null,null,null,null,null,null,null,null,null,null,null,null,null,null,null,null,null,null,null,null,null,null,null,null,null,null,null,null,0,0,0,0]
[null,null,null,null,null,null,null,null,null,null,null,null,null,null,null,null,null,null,null,null,null,null,null,null,null,null,null,null,null,null,null,null,null,null,null,null,null,null,null,null,null,null,null,null,null,null,null,null,null,null,null,null,null,null,null,0,0,0,0]
[null,null,null,null,null,null,null,null,null,null,null,null,null,null,null,null,null,null,null,null,null,null,null,null,null,null,null,null,null,null,null,null,null,null,null,null,null,null,null,null,null,null,null,null,null,null,null,null,null,null,null,null,null,null,null,0,0,0,0]
[null,null,null,null,null,null,null,null,null,null,null,null,null,null,null,null,null,null,null,null,null,null,null,null,null,null,null,null,null,null,null,null,null,null,null,null,null,null,null,null,null,null,null,null,null,null,null,null,null,null,null,null,null,null,null,0,0,0,0]
[null,null,null,null,null,null,null,null,null,null,null,null,null,null,null,null,null,null,null,null,null,null,null,null,null,null,null,null,null,null,null,null,null,null,null,null,null,null,null,null,null,null,null,null,null,null,null,null,null,null,null,null,null,null,null,0,0,0,0]
[null,null,null,null,null,null,null,null,null,null,null,null,null,null,null,null,null,null,null,null,null,null,null,null,null,null,null,null,null,null,null,null,null,null,null,null,null,null,null,null,null,null,null,null,null,null,null,null,null,null,null,null,null,null,null,0,0,0,0]
[null,null,null,null,null,null,null,null,null,null,null,null,null,null,null,null,null,null,null,null,null,null,null,null,null,null,null,null,null,null,null,null,null,null,null,null,null,null,null,null,null,null,null,null,null,null,null,null,null,null,null,null,null,null,null,{"$f":"COUNTIF(J73:BB73,1)","v":0},{"$f":"COUNTIF(J73:BB73,2)","v":0},{"$f":"COUNTIF(J73:BB73,3)","v":0},{"$f":"SUM(BD73:BF73)","v":0}]
[null,null,null,null,null,null,null,null,null,null,null,null,null,null,null,null,null,null,null,null,null,null,null,null,null,null,null,null,null,null,null,null,null,null,null,null,null,null,null,null,null,null,null,null,null,null,null,null,null,null,null,null,null,null,null,0,0,0,0]
[null,null,null,null,null,null,null,null,null,null,null,null,null,null,null,null,null,null,null,null,null,null,null,null,null,null,null,null,null,null,null,null,null,null,null,null,null,null,null,null,null,null,null,null,null,null,null,null,null,null,null,null,null,null,null,0,0,0,0]
[null,null,null,null,null,null,null,null,null,null,null,null,null,null,null,null,null,null,null,null,null,null,null,null,null,null,null,null,null,null,null,null,null,null,null,null,null,null,null,null,null,null,null,null,null,null,null,null,null,null,null,null,null,null,null,0,0,0,0]
[null,null,null,null,null,null,null,null,null,null,null,null,null,null,null,null,null,null,null,null,null,null,null,null,null,null,null,null,null,null,null,null,null,null,null,null,null,null,null,null,null,null,null,null,null,null,null,null,null,null,null,null,null,null,null,0,0,0,0]
[null,null,null,null,null,null,null,null,null,null,null,null,null,null,null,null,null,null,null,null,null,null,null,null,null,null,null,null,null,null,null,null,null,null,null,null,null,null,null,null,null,null,null,null,null,null,null,null,null,null,null,null,null,null,null,0,0,0,0]
[null,null,null,null,null,null,null,null,null,null,null,null,null,null,null,null,null,null,null,null,null,null,null,null,null,null,null,null,null,null,null,null,null,null,null,null,null,null,null,null,null,null,null,null,null,null,null,null,null,null,null,null,null,null,null,0,0,0,0]
[null,null,null,null,null,null,null,null,null,null,null,null,null,null,null,null,null,null,null,null,null,null,null,null,null,null,null,null,null,null,null,null,null,null,null,null,null,null,null,null,null,null,null,null,null,null,null,null,null,null,null,null,null,null,null,0,0,0,0]
[null,null,null,null,null,null,null,null,null,null,null,null,null,null,null,null,null,null,null,null,null,null,null,null,null,null,null,null,null,null,null,null,null,null,null,null,null,null,null,null,null,null,null,null,null,null,null,null,null,null,null,null,null,null,null,0,0,0,0]
[null,null,null,null,null,null,null,null,null,null,null,null,null,null,null,null,null,null,null,null,null,null,null,null,null,null,null,null,null,null,null,null,null,null,null,null,null,null,null,null,null,null,null,null,null,null,null,null,null,null,null,null,null,null,null,0,0,0,0]
[null,null,null,null,null,null,null,null,null,null,null,null,null,null,null,null,null,null,null,null,null,null,null,null,null,null,null,null,null,null,null,null,null,null,null,null,null,null,null,null,null,null,null,null,null,null,null,null,null,null,null,null,null,null,null,0,0,0,0]
[null,null,null,null,null,null,null,null,null,null,null,null,null,null,null,null,null,null,null,null,null,null,null,null,null,null,null,null,null,null,null,null,null,null,null,null,null,null,null,null,null,null,null,null,null,null,null,null,null,null,null,null,null,null,null,0,0,0,0]
[null,null,null,null,null,null,null,null,null,null,null,null,null,null,null,null,null,null,null,null,null,null,null,null,null,null,null,null,null,null,null,null,null,null,null,null,null,null,null,null,null,null,null,null,null,null,null,null,null,null,null,null,null,null,null,0,0,0,0]
[null,null,null,null,null,null,null,null,null,null,null,null,null,null,null,null,null,null,null,null,null,null,null,null,null,null,null,null,null,null,null,null,null,null,null,null,null,null,null,null,null,null,null,null,null,null,null,null,null,null,null,null,null,null,null,0,0,0,0]
[null,null,null,null,null,null,null,null,null,null,null,null,null,null,null,null,null,null,null,null,null,null,null,null,null,null,null,null,null,null,null,null,null,null,null,null,null,null,null,null,null,null,null,null,null,null,null,null,null,null,null,null,null,null,null,0,0,0,0]
[null,null,null,null,null,null,null,null,null,null,null,null,null,null,null,null,null,null,null,null,null,null,null,null,null,null,null,null,null,null,null,null,null,null,null,null,null,null,null,null,null,null,null,null,null,null,null,null,null,null,null,null,null,null,null,0,0,0,0]
[null,null,null,null,null,null,null,null,null,null,null,null,null,null,null,null,null,null,null,null,null,null,null,null,null,null,null,null,null,null,null,null,null,null,null,null,null,null,null,null,null,null,null,null,null,null,null,null,null,null,null,null,null,null,null,0,0,0,0]
[null,null,null,null,null,null,null,null,null,null,null,null,null,null,null,null,null,null,null,null,null,null,null,null,null,null,null,null,null,null,null,null,null,null,null,null,null,null,null,null,null,null,null,null,null,null,null,null,null,null,null,null,null,null,null,0,0,0,0]
[null,null,null,null,null,null,null,null,null,null,null,null,null,null,null,null,null,null,null,null,null,null,null,null,null,null,null,null,null,null,null,null,null,null,null,null,null,null,null,null,null,null,null,null,null,null,null,null,null,null,null,null,null,null,null,0,0,0,0]
[null,null,null,null,null,null,null,null,null,null,null,null,null,null,null,null,null,null,null,null,null,null,null,null,null,null,null,null,null,null,null,null,null,null,null,null,null,null,null,null,null,null,null,null,null,null,null,null,null,null,null,null,null,null,null,0,0,0,0]
[null,null,null,null,null,null,null,null,null,null,null,null,null,null,null,null,null,null,null,null,null,null,null,null,null,null,null,null,null,null,null,null,null,null,null,null,null,null,null,null,null,null,null,null,null,null,null,null,null,null,null,null,null,null,null,0,0,0,0]
[null,null,null,null,null,null,null,null,null,null,null,null,null,null,null,null,null,null,null,null,null,null,null,null,null,null,null,null,null,null,null,null,null,null,null,null,null,null,null,null,null,null,null,null,null,null,null,null,null,null,null,null,null,null,null,0,0,0,0]
[null,null,null,null,null,null,null,null,null,null,null,null,null,null,null,null,null,null,null,null,null,null,null,null,null,null,null,null,null,null,null,null,null,null,null,null,null,null,null,null,null,null,null,null,null,null,null,null,null,null,null,null,null,null,null,0,0,0,0]
[null,null,null,null,null,null,null,null,null,null,null,null,null,null,null,null,null,null,null,null,null,null,null,null,null,null,null,null,null,null,null,null,null,null,null,null,null,null,null,null,null,null,null,null,null,null,null,null,null,null,null,null,null,null,null,0,0,0,0]
[null,null,null,null,null,null,null,null,null,null,null,null,null,null,null,null,null,null,null,null,null,null,null,null,null,null,null,null,null,null,null,null,null,null,null,null,null,null,null,null,null,null,null,null,null,null,null,null,null,null,null,null,null,null,null,0,0,0,0]
[null,null,null,null,null,null,null,null,null,null,null,null,null,null,null,null,null,null,null,null,null,null,null,null,null,null,null,null,null,null,null,null,null,null,null,null,null,null,null,null,null,null,null,null,null,null,null,null,null,null,null,null,null,null,null,0,0,0,0]
[null,null,null,null,null,null,null,null,null,null,null,null,null,null,null,null,null,null,null,null,null,null,null,null,null,null,null,null,null,null,null,null,null,null,null,null,null,null,null,null,null,null,null,null,null,null,null,null,null,null,null,null,null,null,null,{"$f":"COUNTIF(J99:BB99,1)","v":0},{"$f":"COUNTIF(J99:BB99,2)","v":0},{"$f":"COUNTIF(J99:BB99,3)","v":0},{"$f":"SUM(BD99:BF99)","v":0}]
[null,null,null,null,null,null,null,null,null,null,null,null,null,null,null,null,null,null,null,null,null,null,null,null,null,null,null,null,null,null,null,null,null,null,null,null,null,null,null,null,null,null,null,null,null,null,null,null,null,null,null,null,null,null,null,0,0,0,0]
[null,null,null,null,null,null,null,null,null,null,null,null,null,null,null,null,null,null,null,null,null,null,null,null,null,null,null,null,null,null,null,null,null,null,null,null,null,null,null,null,null,null,null,null,null,null,null,null,null,null,null,null,null,null,null,0,0,0,0]
[null,null,null,null,null,null,null,null,null,null,null,null,null,null,null,null,null,null,null,null,null,null,null,null,null,null,null,null,null,null,null,null,null,null,null,null,null,null,null,null,null,null,null,null,null,null,null,null,null,null,null,null,null,null,null,0,0,0,0]
[null,null,null,null,null,null,null,null,null,null,null,null,null,null,null,null,null,null,null,null,null,null,null,null,null,null,null,null,null,null,null,null,null,null,null,null,null,null,null,null,null,null,null,null,null,null,null,null,null,null,null,null,null,null,null,0,0,0,0]
[null,null,null,null,null,null,null,null,null,null,null,null,null,null,null,null,null,null,null,null,null,null,null,null,null,null,null,null,null,null,null,null,null,null,null,null,null,null,null,null,null,null,null,null,null,null,null,null,null,null,null,null,null,null,null,0,0,0,0]
[null,null,null,null,null,null,null,null,null,null,null,null,null,null,null,null,null,null,null,null,null,null,null,null,null,null,null,null,null,null,null,null,null,null,null,null,null,null,null,null,null,null,null,null,null,null,null,null,null,null,null,null,null,null,null,0,0,0,0]
[null,null,null,null,null,null,null,null,null,null,null,null,null,null,null,null,null,null,null,null,null,null,null,null,null,null,null,null,null,null,null,null,null,null,null,null,null,null,null,null,null,null,null,null,null,null,null,null,null,null,null,null,null,null,null,0,0,0,0]
[null,null,null,null,null,null,null,null,null,null,null,null,null,null,null,null,null,null,null,null,null,null,null,null,null,null,null,null,null,null,null,null,null,null,null,null,null,null,null,null,null,null,null,null,null,null,null,null,null,null,null,null,null,null,null,0,0,0,0]
["Ne rien inscrire dans cette ligne"]
[null,null,null,{"$f":"\"Nombre total de référentiels validés : \"&SUM(J109:BC109)","v":"Nombre total de référentiels validés : 0"},null,null,null,"Validés",null,{"$f":"COUNTIF(J8:J107,1)","v":0},0,0,0,0,0,0,0,0,0,0,0,0,0,0,0,0,0,0,0,0,0,0,0,0,0,0,0,0,0,0,0,0,0,0,0,0,0,0,0,0,null,{"$f":"COUNTIF(AZ8:AZ107,1)","v":0},{"$f":"COUNTIF(BA8:BA107,1)","v":0},{"$f":"COUNTIF(BB8:BB107,1)","v":0}]
[null,null,null,{"$f":"\"Nombre total de référentiels en attente : \"&SUM(J110:BC110)","v":"Nombre total de référentiels en attente : 0"},null,null,null,"En attente",null,{"$f":"COUNTIF(J8:J107,2)","v":0},0,0,0,0,0,0,0,0,0,0,0,0,0,0,0,0,0,0,0,0,0,0,0,0,0,0,0,0,0,0,0,0,0,0,0,0,0,0,0,0,null,{"$f":"COUNTIF(AZ8:AZ107,2)","v":0},{"$f":"COUNTIF(BA8:BA107,2)","v":0},{"$f":"COUNTIF(BB8:BB107,2)","v":0}]
[null,null,null,{"$f":"\"Nombre total de référentiels refusés ou à modifier : \"&SUM(J111:BC111)","v":"Nombre total de référentiels refusés ou à modifier : 0"},null,null,null,"Refus / à modifier",null,{"$f":"COUNTIF(J8:J107,3)","v":0},0,0,0,0,0,0,0,0,0,0,0,0,0,0,0,0,0,0,0,0,0,0,0,0,0,0,0,0,0,0,0,0,0,0,0,0,0,0,0,0,null,{"$f":"COUNTIF(AZ8:AZ107,3)","v":0},{"$f":"COUNTIF(BA8:BA107,3)","v":0},{"$f":"COUNTIF(BB8:BB107,3)","v":0}]
[null,null,null,{"$f":"\"Nombre total de référentiels : \"&SUM(J112:BC112)","v":"Nombre total de référentiels : 0"},null,null,null,"TOTAL",null,{"$f":"SUM(J109:J111)","v":0},{"$f":"SUM(K109:K111)","v":0},0,0,0,0,0,0,0,0,0,0,0,0,0,0,0,0,0,0,0,0,0,0,0,0,0,0,0,0,0,0,0,0,0,0,0,0,0,0,0,null,0,0,0]

{"sheet":"REF CAP","index":2,"n_rows":112,"n_cols":59,"rows_kept":112,"cut":false,"hidden":false,"merged":[[0,5,0,6],[4,5,4,6],[5,3,5,6],[5,1,5,2],[0,3,4,3],[0,54,5,54],[108,7,108,8],[109,7,109,8],[110,7,110,8],[1,9,4,9],[0,7,5,7],[108,3,108,6],[109,3,109,6],[110,3,110,6],[111,3,111,6],[111,7,111,8]]}
[null,null,null,"CAP",null,"Légende du tableau des référentiels",null,"Ne pas\nsupprimer\nou déplacer\ncette colonne",null,"Tableau des référentiels à compléter (saisir exclusivement un chiffre entre 1 et 3 !)",null,null,null,null,null,null,null,null,null,null,null,null,null,null,null,null,null,null,null,null,null,null,null,null,null,null,null,null,null,null,null,null,null,null,null,null,null,null,null,null,null,null,null,null,"Ne rien inscrire dans cette colonne"]
[null,null,null,null,null,1,"Référentiel validé",null,null,"Ne pas\nsupprimer\nou déplacer\ncette colonne\n(première\ncolonne\ndes APSA)"]
[null,null,null,null,null,2,"Référentiel en attente de validation"]
[null,null,null,null,null,3,"Référentiel refusé ou en attente de modification"]
[null,null,null,null,null,"Seuls les référentiels avec les indices 1 et 2 seront pris en compte pour CYCLADES"]
[null,"Colonnes facultatives pouvant être modifiées, masquées ou supprimées",null,"Les colonnes D E F G ne doivent pas être supprimées, le titre ne doit pas être modifié. Les cellules sous le titre peuvent rester ''vides''. Utilisez le copié-collage spécial en ne sélectionnant que les valeurs (ou le texte) au moment d'une copie",null,null,null,null,"Infos >"]
[null,"CAHN","Adresse correspondant établissement","DEP","Type","Ville","Etablissement","UAI","Réf. Valid\n/ Total",null,null,null,null,null,null,null,null,null,null,null,null,null,null,null,null,null,null,null,null,null,null,null,null,null,null,null,null,null,null,null,null,null,null,null,null,null,null,null,null,null,null,null,null,null,null,"Validés","En attente","Refus /\nà modifier","Total"]
[null,null,null,null,null,null,null,null,null,null,null,null,null,null,null,null,null,null,null,null,null,null,null,null,null,null,null,null,null,null,null,null,null,null,null,null,null,null,null,null,null,null,null,null,null,null,null,null,null,null,null,null,null,null,null,{"$f":"COUNTIF(J8:BB8,1)","v":0},{"$f":"COUNTIF(J8:BB8,2)","v":0},{"$f":"COUNTIF(J8:BB8,3)","v":0},{"$f":"SUM(BD8:BF8)","v":0}]
[null,null,null,null,null,null,null,null,null,null,null,null,null,null,null,null,null,null,null,null,null,null,null,null,null,null,null,null,null,null,null,null,null,null,null,null,null,null,null,null,null,null,null,null,null,null,null,null,null,null,null,null,null,null,null,{"$f":"COUNTIF(J9:BB9,1)","v":0},{"$f":"COUNTIF(J9:BB9,2)","v":0},{"$f":"COUNTIF(J9:BB9,3)","v":0},{"$f":"SUM(BD9:BF9)","v":0}]
[null,null,null,null,null,null,null,null,null,null,null,null,null,null,null,null,null,null,null,null,null,null,null,null,null,null,null,null,null,null,null,null,null,null,null,null,null,null,null,null,null,null,null,null,null,null,null,null,null,null,null,null,null,null,null,0,0,0,0]
[null,null,null,null,null,null,null,null,null,null,null,null,null,null,null,null,null,null,null,null,null,null,null,null,null,null,null,null,null,null,null,null,null,null,null,null,null,null,null,null,null,null,null,null,null,null,null,null,null,null,null,null,null,null,null,0,0,0,0]
[null,null,null,null,null,null,null,null,null,null,null,null,null,null,null,null,null,null,null,null,null,null,null,null,null,null,null,null,null,null,null,null,null,null,null,null,null,null,null,null,null,null,null,null,null,null,null,null,null,null,null,null,null,null,null,0,0,0,0]
[null,null,null,null,null,null,null,null,null,null,null,null,null,null,null,null,null,null,null,null,null,null,null,null,null,null,null,null,null,null,null,null,null,null,null,null,null,null,null,null,null,null,null,null,null,null,null,null,null,null,null,null,null,null,null,0,0,0,0]
[null,null,null,null,null,null,null,null,null,null,null,null,null,null,null,null,null,null,null,null,null,null,null,null,null,null,null,null,null,null,null,null,null,null,null,null,null,null,null,null,null,null,null,null,null,null,null,null,null,null,null,null,null,null,null,0,0,0,0]
[null,null,null,null,null,null,null,null,null,null,null,null,null,null,null,null,null,null,null,null,null,null,null,null,null,null,null,null,null,null,null,null,null,null,null,null,null,null,null,null,null,null,null,null,null,null,null,null,null,null,null,null,null,null,null,0,0,0,0]
[null,null,null,null,null,null,null,null,null,null,null,null,null,null,null,null,null,null,null,null,null,null,null,null,null,null,null,null,null,null,null,null,null,null,null,null,null,null,null,null,null,null,null,null,null,null,null,null,null,null,null,null,null,null,null,0,0,0,0]
[null,null,null,null,null,null,null,null,null,null,null,null,null,null,null,null,null,null,null,null,null,null,null,null,null,null,null,null,null,null,null,null,null,null,null,null,null,null,null,null,null,null,null,null,null,null,null,null,null,null,null,null,null,null,null,0,0,0,0]
[null,null,null,null,null,null,null,null,null,null,null,null,null,null,null,null,null,null,null,null,null,null,null,null,null,null,null,null,null,null,null,null,null,null,null,null,null,null,null,null,null,null,null,null,null,null,null,null,null,null,null,null,null,null,null,0,0,0,0]
[null,null,null,null,null,null,null,null,null,null,null,null,null,null,null,null,null,null,null,null,null,null,null,null,null,null,null,null,null,null,null,null,null,null,null,null,null,null,null,null,null,null,null,null,null,null,null,null,null,null,null,null,null,null,null,0,0,0,0]
[null,null,null,null,null,null,null,null,null,null,null,null,null,null,null,null,null,null,null,null,null,null,null,null,null,null,null,null,null,null,null,null,null,null,null,null,null,null,null,null,null,null,null,null,null,null,null,null,null,null,null,null,null,null,null,0,0,0,0]
[null,null,null,null,null,null,null,null,null,null,null,null,null,null,null,null,null,null,null,null,null,null,null,null,null,null,null,null,null,null,null,null,null,null,null,null,null,null,null,null,null,null,null,null,null,null,null,null,null,null,null,null,null,null,null,0,0,0,0]
[null,null,null,null,null,null,null,null,null,null,null,null,null,null,null,null,null,null,null,null,null,null,null,null,null,null,null,null,null,null,null,null,null,null,null,null,null,null,null,null,null,null,null,null,null,null,null,null,null,null,null,null,null,null,null,0,0,0,0]
[null,null,null,null,null,null,null,null,null,null,null,null,null,null,null,null,null,null,null,null,null,null,null,null,null,null,null,null,null,null,null,null,null,null,null,null,null,null,null,null,null,null,null,null,null,null,null,null,null,null,null,null,null,null,null,0,0,0,0]
[null,null,null,null,null,null,null,null,null,null,null,null,null,null,null,null,null,null,null,null,null,null,null,null,null,null,null,null,null,null,null,null,null,null,null,null,null,null,null,null,null,null,null,null,null,null,null,null,null,null,null,null,null,null,null,0,0,0,0]
[null,null,null,null,null,null,null,null,null,null,null,null,null,null,null,null,null,null,null,null,null,null,null,null,null,null,null,null,null,null,null,null,null,null,null,null,null,null,null,null,null,null,null,null,null,null,null,null,null,null,null,null,null,null,null,0,0,0,0]
[null,null,null,null,null,null,null,null,null,null,null,null,null,null,null,null,null,null,null,null,null,null,null,null,null,null,null,null,null,null,null,null,null,null,null,null,null,null,null,null,null,null,null,null,null,null,null,null,null,null,null,null,null,null,null,0,0,0,0]
[null,null,null,null,null,null,null,null,null,null,null,null,null,null,null,null,null,null,null,null,null,null,null,null,null,null,null,null,null,null,null,null,null,null,null,null,null,null,null,null,null,null,null,null,null,null,null,null,null,null,null,null,null,null,null,0,0,0,0]
[null,null,null,null,null,null,null,null,null,null,null,null,null,null,null,null,null,null,null,null,null,null,null,null,null,null,null,null,null,null,null,null,null,null,null,null,null,null,null,null,null,null,null,null,null,null,null,null,null,null,null,null,null,null,null,0,0,0,0]
[null,null,null,null,null,null,null,null,null,null,null,null,null,null,null,null,null,null,null,null,null,null,null,null,null,null,null,null,null,null,null,null,null,null,null,null,null,null,null,null,null,null,null,null,null,null,null,null,null,null,null,null,null,null,null,0,0,0,0]
[null,null,null,null,null,null,null,null,null,null,null,null,null,null,null,null,null,null,null,null,null,null,null,null,null,null,null,null,null,null,null,null,null,null,null,null,null,null,null,null,null,null,null,null,null,null,null,null,null,null,null,null,null,null,null,0,0,0,0]
[null,null,null,null,null,null,null,null,null,null,null,null,null,null,null,null,null,null,null,null,null,null,null,null,null,null,null,null,null,null,null,null,null,null,null,null,null,null,null,null,null,null,null,null,null,null,null,null,null,null,null,null,null,null,null,0,0,0,0]
[null,null,null,null,null,null,null,null,null,null,null,null,null,null,null,null,null,null,null,null,null,null,null,null,null,null,null,null,null,null,null,null,null,null,null,null,null,null,null,null,null,null,null,null,null,null,null,null,null,null,null,null,null,null,null,0,0,0,0]
[null,null,null,null,null,null,null,null,null,null,null,null,null,null,null,null,null,null,null,null,null,null,null,null,null,null,null,null,null,null,null,null,null,null,null,null,null,null,null,null,null,null,null,null,null,null,null,null,null,null,null,null,null,null,null,0,0,0,0]
[null,null,null,null,null,null,null,null,null,null,null,null,null,null,null,null,null,null,null,null,null,null,null,null,null,null,null,null,null,null,null,null,null,null,null,null,null,null,null,null,null,null,null,null,null,null,null,null,null,null,null,null,null,null,null,0,0,0,0]
[null,null,null,null,null,null,null,null,null,null,null,null,null,null,null,null,null,null,null,null,null,null,null,null,null,null,null,null,null,null,null,null,null,null,null,null,null,null,null,null,null,null,null,null,null,null,null,null,null,null,null,null,null,null,null,0,0,0,0]
[null,null,null,null,null,null,null,null,null,null,null,null,null,null,null,null,null,null,null,null,null,null,null,null,null,null,null,null,null,null,null,null,null,null,null,null,null,null,null,null,null,null,null,null,null,null,null,null,null,null,null,null,null,null,null,0,0,0,0]
[null,null,null,null,null,null,null,null,null,null,null,null,null,null,null,null,null,null,null,null,null,null,null,null,null,null,null,null,null,null,null,null,null,null,null,null,null,null,null,null,null,null,null,null,null,null,null,null,null,null,null,null,null,null,null,0,0,0,0]
[null,null,null,null,null,null,null,null,null,null,null,null,null,null,null,null,null,null,null,null,null,null,null,null,null,null,null,null,null,null,null,null,null,null,null,null,null,null,null,null,null,null,null,null,null,null,null,null,null,null,null,null,null,null,null,0,0,0,0]
[null,null,null,null,null,null,null,null,null,null,null,null,null,null,null,null,null,null,null,null,null,null,null,null,null,null,null,null,null,null,null,null,null,null,null,null,null,null,null,null,null,null,null,null,null,null,null,null,null,null,null,null,null,null,null,0,0,0,0]
[null,null,null,null,null,null,null,null,null,null,null,null,null,null,null,null,null,null,null,null,null,null,null,null,null,null,null,null,null,null,null,null,null,null,null,null,null,null,null,null,null,null,null,null,null,null,null,null,null,null,null,null,null,null,null,0,0,0,0]
[null,null,null,null,null,null,null,null,null,null,null,null,null,null,null,null,null,null,null,null,null,null,null,null,null,null,null,null,null,null,null,null,null,null,null,null,null,null,null,null,null,null,null,null,null,null,null,null,null,null,null,null,null,null,null,0,0,0,0]
[null,null,null,null,null,null,null,null,null,null,null,null,null,null,null,null,null,null,null,null,null,null,null,null,null,null,null,null,null,null,null,null,null,null,null,null,null,null,null,null,null,null,null,null,null,null,null,null,null,null,null,null,null,null,null,0,0,0,0]
[null,null,null,null,null,null,null,null,null,null,null,null,null,null,null,null,null,null,null,null,null,null,null,null,null,null,null,null,null,null,null,null,null,null,null,null,null,null,null,null,null,null,null,null,null,null,null,null,null,null,null,null,null,null,null,0,0,0,0]
[null,null,null,null,null,null,null,null,null,null,null,null,null,null,null,null,null,null,null,null,null,null,null,null,null,null,null,null,null,null,null,null,null,null,null,null,null,null,null,null,null,null,null,null,null,null,null,null,null,null,null,null,null,null,null,0,0,0,0]
[null,null,null,null,null,null,null,null,null,null,null,null,null,null,null,null,null,null,null,null,null,null,null,null,null,null,null,null,null,null,null,null,null,null,null,null,null,null,null,null,null,null,null,null,null,null,null,null,null,null,null,null,null,null,null,0,0,0,0]
[null,null,null,null,null,null,null,null,null,null,null,null,null,null,null,null,null,null,null,null,null,null,null,null,null,null,null,null,null,null,null,null,null,null,null,null,null,null,null,null,null,null,null,null,null,null,null,null,null,null,null,null,null,null,null,0,0,0,0]
[null,null,null,null,null,null,null,null,null,null,null,null,null,null,null,null,null,null,null,null,null,null,null,null,null,null,null,null,null,null,null,null,null,null,null,null,null,null,null,null,null,null,null,null,null,null,null,null,null,null,null,null,null,null,null,0,0,0,0]
[null,null,null,null,null,null,null,null,null,null,null,null,null,null,null,null,null,null,null,null,null,null,null,null,null,null,null,null,null,null,null,null,null,null,null,null,null,null,null,null,null,null,null,null,null,null,null,null,null,null,null,null,null,null,null,0,0,0,0]
[null,null,null,null,null,null,null,null,null,null,null,null,null,null,null,null,null,null,null,null,null,null,null,null,null,null,null,null,null,null,null,null,null,null,null,null,null,null,null,null,null,null,null,null,null,null,null,null,null,null,null,null,null,null,null,0,0,0,0]
[null,null,null,null,null,null,null,null,null,null,null,null,null,null,null,null,null,null,null,null,null,null,null,null,null,null,null,null,null,null,null,null,null,null,null,null,null,null,null,null,null,null,null,null,null,null,null,null,null,null,null,null,null,null,null,0,0,0,0]
[null,null,null,null,null,null,null,null,null,null,null,null,null,null,null,null,null,null,null,null,null,null,null,null,null,null,null,null,null,null,null,null,null,null,null,null,null,null,null,null,null,null,null,null,null,null,null,null,null,null,null,null,null,null,null,0,0,0,0]
[null,null,null,null,null,null,null,null,null,null,null,null,null,null,null,null,null,null,null,null,null,null,null,null,null,null,null,null,null,null,null,null,null,null,null,null,null,null,null,null,null,null,null,null,null,null,null,null,null,null,null,null,null,null,null,0,0,0,0]
[null,null,null,null,null,null,null,null,null,null,null,null,null,null,null,null,null,null,null,null,null,null,null,null,null,null,null,null,null,null,null,null,null,null,null,null,null,null,null,null,null,null,null,null,null,null,null,null,null,null,null,null,null,null,null,0,0,0,0]
[null,null,null,null,null,null,null,null,null,null,null,null,null,null,null,null,null,null,null,null,null,null,null,null,null,null,null,null,null,null,null,null,null,null,null,null,null,null,null,null,null,null,null,null,null,null,null,null,null,null,null,null,null,null,null,0,0,0,0]
[null,null,null,null,null,null,null,null,null,null,null,null,null,null,null,null,null,null,null,null,null,null,null,null,null,null,null,null,null,null,null,null,null,null,null,null,null,null,null,null,null,null,null,null,null,null,null,null,null,null,null,null,null,null,null,0,0,0,0]
[null,null,null,null,null,null,null,null,null,null,null,null,null,null,null,null,null,null,null,null,null,null,null,null,null,null,null,null,null,null,null,null,null,null,null,null,null,null,null,null,null,null,null,null,null,null,null,null,null,null,null,null,null,null,null,0,0,0,0]
[null,null,null,null,null,null,null,null,null,null,null,null,null,null,null,null,null,null,null,null,null,null,null,null,null,null,null,null,null,null,null,null,null,null,null,null,null,null,null,null,null,null,null,null,null,null,null,null,null,null,null,null,null,null,null,0,0,0,0]
[null,null,null,null,null,null,null,null,null,null,null,null,null,null,null,null,null,null,null,null,null,null,null,null,null,null,null,null,null,null,null,null,null,null,null,null,null,null,null,null,null,null,null,null,null,null,null,null,null,null,null,null,null,null,null,0,0,0,0]
[null,null,null,null,null,null,null,null,null,null,null,null,null,null,null,null,null,null,null,null,null,null,null,null,null,null,null,null,null,null,null,null,null,null,null,null,null,null,null,null,null,null,null,null,null,null,null,null,null,null,null,null,null,null,null,0,0,0,0]
[null,null,null,null,null,null,null,null,null,null,null,null,null,null,null,null,null,null,null,null,null,null,null,null,null,null,null,null,null,null,null,null,null,null,null,null,null,null,null,null,null,null,null,null,null,null,null,null,null,null,null,null,null,null,null,0,0,0,0]
[null,null,null,null,null,null,null,null,null,null,null,null,null,null,null,null,null,null,null,null,null,null,null,null,null,null,null,null,null,null,null,null,null,null,null,null,null,null,null,null,null,null,null,null,null,null,null,null,null,null,null,null,null,null,null,0,0,0,0]
[null,null,null,null,null,null,null,null,null,null,null,null,null,null,null,null,null,null,null,null,null,null,null,null,null,null,null,null,null,null,null,null,null,null,null,null,null,null,null,null,null,null,null,null,null,null,null,null,null,null,null,null,null,null,null,0,0,0,0]
[null,null,null,null,null,null,null,null,null,null,null,null,null,null,null,null,null,null,null,null,null,null,null,null,null,null,null,null,null,null,null,null,null,null,null,null,null,null,null,null,null,null,null,null,null,null,null,null,null,null,null,null,null,null,null,0,0,0,0]
[null,null,null,null,null,null,null,null,null,null,null,null,null,null,null,null,null,null,null,null,null,null,null,null,null,null,null,null,null,null,null,null,null,null,null,null,null,null,null,null,null,null,null,null,null,null,null,null,null,null,null,null,null,null,null,0,0,0,0]
[null,null,null,null,null,null,null,null,null,null,null,null,null,null,null,null,null,null,null,null,null,null,null,null,null,null,null,null,null,null,null,null,null,null,null,null,null,null,null,null,null,null,null,null,null,null,null,null,null,null,null,null,null,null,null,0,0,0,0]
[null,null,null,null,null,null,null,null,null,null,null,null,null,null,null,null,null,null,null,null,null,null,null,null,null,null,null,null,null,null,null,null,null,null,null,null,null,null,null,null,null,null,null,null,null,null,null,null,null,null,null,null,null,null,null,0,0,0,0]
[null,null,null,null,null,null,null,null,null,null,null,null,null,null,null,null,null,null,null,null,null,null,null,null,null,null,null,null,null,null,null,null,null,null,null,null,null,null,null,null,null,null,null,null,null,null,null,null,null,null,null,null,null,null,null,0,0,0,0]
[null,null,null,null,null,null,null,null,null,null,null,null,null,null,null,null,null,null,null,null,null,null,null,null,null,null,null,null,null,null,null,null,null,null,null,null,null,null,null,null,null,null,null,null,null,null,null,null,null,null,null,null,null,null,null,0,0,0,0]
[null,null,null,null,null,null,null,null,null,null,null,null,null,null,null,null,null,null,null,null,null,null,null,null,null,null,null,null,null,null,null,null,null,null,null,null,null,null,null,null,null,null,null,null,null,null,null,null,null,null,null,null,null,null,null,0,0,0,0]
[null,null,null,null,null,null,null,null,null,null,null,null,null,null,null,null,null,null,null,null,null,null,null,null,null,null,null,null,null,null,null,null,null,null,null,null,null,null,null,null,null,null,null,null,null,null,null,null,null,null,null,null,null,null,null,0,0,0,0]
[null,null,null,null,null,null,null,null,null,null,null,null,null,null,null,null,null,null,null,null,null,null,null,null,null,null,null,null,null,null,null,null,null,null,null,null,null,null,null,null,null,null,null,null,null,null,null,null,null,null,null,null,null,null,null,0,0,0,0]
[null,null,null,null,null,null,null,null,null,null,null,null,null,null,null,null,null,null,null,null,null,null,null,null,null,null,null,null,null,null,null,null,null,null,null,null,null,null,null,null,null,null,null,null,null,null,null,null,null,null,null,null,null,null,null,0,0,0,0]
[null,null,null,null,null,null,null,null,null,null,null,null,null,null,null,null,null,null,null,null,null,null,null,null,null,null,null,null,null,null,null,null,null,null,null,null,null,null,null,null,null,null,null,null,null,null,null,null,null,null,null,null,null,null,null,{"$f":"COUNTIF(J73:BB73,1)","v":0},{"$f":"COUNTIF(J73:BB73,2)","v":0},{"$f":"COUNTIF(J73:BB73,3)","v":0},{"$f":"SUM(BD73:BF73)","v":0}]
[null,null,null,null,null,null,null,null,null,null,null,null,null,null,null,null,null,null,null,null,null,null,null,null,null,null,null,null,null,null,null,null,null,null,null,null,null,null,null,null,null,null,null,null,null,null,null,null,null,null,null,null,null,null,null,0,0,0,0]
[null,null,null,null,null,null,null,null,null,null,null,null,null,null,null,null,null,null,null,null,null,null,null,null,null,null,null,null,null,null,null,null,null,null,null,null,null,null,null,null,null,null,null,null,null,null,null,null,null,null,null,null,null,null,null,0,0,0,0]
[null,null,null,null,null,null,null,null,null,null,null,null,null,null,null,null,null,null,null,null,null,null,null,null,null,null,null,null,null,null,null,null,null,null,null,null,null,null,null,null,null,null,null,null,null,null,null,null,null,null,null,null,null,null,null,0,0,0,0]
[null,null,null,null,null,null,null,null,null,null,null,null,null,null,null,null,null,null,null,null,null,null,null,null,null,null,null,null,null,null,null,null,null,null,null,null,null,null,null,null,null,null,null,null,null,null,null,null,null,null,null,null,null,null,null,0,0,0,0]
[null,null,null,null,null,null,null,null,null,null,null,null,null,null,null,null,null,null,null,null,null,null,null,null,null,null,null,null,null,null,null,null,null,null,null,null,null,null,null,null,null,null,null,null,null,null,null,null,null,null,null,null,null,null,null,0,0,0,0]
[null,null,null,null,null,null,null,null,null,null,null,null,null,null,null,null,null,null,null,null,null,null,null,null,null,null,null,null,null,null,null,null,null,null,null,null,null,null,null,null,null,null,null,null,null,null,null,null,null,null,null,null,null,null,null,0,0,0,0]
[null,null,null,null,null,null,null,null,null,null,null,null,null,null,null,null,null,null,null,null,null,null,null,null,null,null,null,null,null,null,null,null,null,null,null,null,null,null,null,null,null,null,null,null,null,null,null,null,null,null,null,null,null,null,null,0,0,0,0]
[null,null,null,null,null,null,null,null,null,null,null,null,null,null,null,null,null,null,null,null,null,null,null,null,null,null,null,null,null,null,null,null,null,null,null,null,null,null,null,null,null,null,null,null,null,null,null,null,null,null,null,null,null,null,null,0,0,0,0]
[null,null,null,null,null,null,null,null,null,null,null,null,null,null,null,null,null,null,null,null,null,null,null,null,null,null,null,null,null,null,null,null,null,null,null,null,null,null,null,null,null,null,null,null,null,null,null,null,null,null,null,null,null,null,null,0,0,0,0]
[null,null,null,null,null,null,null,null,null,null,null,null,null,null,null,null,null,null,null,null,null,null,null,null,null,null,null,null,null,null,null,null,null,null,null,null,null,null,null,null,null,null,null,null,null,null,null,null,null,null,null,null,null,null,null,0,0,0,0]
[null,null,null,null,null,null,null,null,null,null,null,null,null,null,null,null,null,null,null,null,null,null,null,null,null,null,null,null,null,null,null,null,null,null,null,null,null,null,null,null,null,null,null,null,null,null,null,null,null,null,null,null,null,null,null,0,0,0,0]
[null,null,null,null,null,null,null,null,null,null,null,null,null,null,null,null,null,null,null,null,null,null,null,null,null,null,null,null,null,null,null,null,null,null,null,null,null,null,null,null,null,null,null,null,null,null,null,null,null,null,null,null,null,null,null,0,0,0,0]
[null,null,null,null,null,null,null,null,null,null,null,null,null,null,null,null,null,null,null,null,null,null,null,null,null,null,null,null,null,null,null,null,null,null,null,null,null,null,null,null,null,null,null,null,null,null,null,null,null,null,null,null,null,null,null,0,0,0,0]
[null,null,null,null,null,null,null,null,null,null,null,null,null,null,null,null,null,null,null,null,null,null,null,null,null,null,null,null,null,null,null,null,null,null,null,null,null,null,null,null,null,null,null,null,null,null,null,null,null,null,null,null,null,null,null,0,0,0,0]
[null,null,null,null,null,null,null,null,null,null,null,null,null,null,null,null,null,null,null,null,null,null,null,null,null,null,null,null,null,null,null,null,null,null,null,null,null,null,null,null,null,null,null,null,null,null,null,null,null,null,null,null,null,null,null,0,0,0,0]
[null,null,null,null,null,null,null,null,null,null,null,null,null,null,null,null,null,null,null,null,null,null,null,null,null,null,null,null,null,null,null,null,null,null,null,null,null,null,null,null,null,null,null,null,null,null,null,null,null,null,null,null,null,null,null,0,0,0,0]
[null,null,null,null,null,null,null,null,null,null,null,null,null,null,null,null,null,null,null,null,null,null,null,null,null,null,null,null,null,null,null,null,null,null,null,null,null,null,null,null,null,null,null,null,null,null,null,null,null,null,null,null,null,null,null,0,0,0,0]
[null,null,null,null,null,null,null,null,null,null,null,null,null,null,null,null,null,null,null,null,null,null,null,null,null,null,null,null,null,null,null,null,null,null,null,null,null,null,null,null,null,null,null,null,null,null,null,null,null,null,null,null,null,null,null,0,0,0,0]
[null,null,null,null,null,null,null,null,null,null,null,null,null,null,null,null,null,null,null,null,null,null,null,null,null,null,null,null,null,null,null,null,null,null,null,null,null,null,null,null,null,null,null,null,null,null,null,null,null,null,null,null,null,null,null,0,0,0,0]
[null,null,null,null,null,null,null,null,null,null,null,null,null,null,null,null,null,null,null,null,null,null,null,null,null,null,null,null,null,null,null,null,null,null,null,null,null,null,null,null,null,null,null,null,null,null,null,null,null,null,null,null,null,null,null,0,0,0,0]
[null,null,null,null,null,null,null,null,null,null,null,null,null,null,null,null,null,null,null,null,null,null,null,null,null,null,null,null,null,null,null,null,null,null,null,null,null,null,null,null,null,null,null,null,null,null,null,null,null,null,null,null,null,null,null,0,0,0,0]
[null,null,null,null,null,null,null,null,null,null,null,null,null,null,null,null,null,null,null,null,null,null,null,null,null,null,null,null,null,null,null,null,null,null,null,null,null,null,null,null,null,null,null,null,null,null,null,null,null,null,null,null,null,null,null,0,0,0,0]
[null,null,null,null,null,null,null,null,null,null,null,null,null,null,null,null,null,null,null,null,null,null,null,null,null,null,null,null,null,null,null,null,null,null,null,null,null,null,null,null,null,null,null,null,null,null,null,null,null,null,null,null,null,null,null,0,0,0,0]
[null,null,null,null,null,null,null,null,null,null,null,null,null,null,null,null,null,null,null,null,null,null,null,null,null,null,null,null,null,null,null,null,null,null,null,null,null,null,null,null,null,null,null,null,null,null,null,null,null,null,null,null,null,null,null,0,0,0,0]
[null,null,null,null,null,null,null,null,null,null,null,null,null,null,null,null,null,null,null,null,null,null,null,null,null,null,null,null,null,null,null,null,null,null,null,null,null,null,null,null,null,null,null,null,null,null,null,null,null,null,null,null,null,null,null,0,0,0,0]
[null,null,null,null,null,null,null,null,null,null,null,null,null,null,null,null,null,null,null,null,null,null,null,null,null,null,null,null,null,null,null,null,null,null,null,null,null,null,null,null,null,null,null,null,null,null,null,null,null,null,null,null,null,null,null,0,0,0,0]
[null,null,null,null,null,null,null,null,null,null,null,null,null,null,null,null,null,null,null,null,null,null,null,null,null,null,null,null,null,null,null,null,null,null,null,null,null,null,null,null,null,null,null,null,null,null,null,null,null,null,null,null,null,null,null,{"$f":"COUNTIF(J100:BB100,1)","v":0},{"$f":"COUNTIF(J100:BB100,2)","v":0},{"$f":"COUNTIF(J100:BB100,3)","v":0},{"$f":"SUM(BD100:BF100)","v":0}]
[null,null,null,null,null,null,null,null,null,null,null,null,null,null,null,null,null,null,null,null,null,null,null,null,null,null,null,null,null,null,null,null,null,null,null,null,null,null,null,null,null,null,null,null,null,null,null,null,null,null,null,null,null,null,null,{"$f":"COUNTIF(J101:BB101,1)","v":0},{"$f":"COUNTIF(J101:BB101,2)","v":0},{"$f":"COUNTIF(J101:BB101,3)","v":0},0]
[null,null,null,null,null,null,null,null,null,null,null,null,null,null,null,null,null,null,null,null,null,null,null,null,null,null,null,null,null,null,null,null,null,null,null,null,null,null,null,null,null,null,null,null,null,null,null,null,null,null,null,null,null,null,null,0,0,0,0]
[null,null,null,null,null,null,null,null,null,null,null,null,null,null,null,null,null,null,null,null,null,null,null,null,null,null,null,null,null,null,null,null,null,null,null,null,null,null,null,null,null,null,null,null,null,null,null,null,null,null,null,null,null,null,null,0,0,0,0]
[null,null,null,null,null,null,null,null,null,null,null,null,null,null,null,null,null,null,null,null,null,null,null,null,null,null,null,null,null,null,null,null,null,null,null,null,null,null,null,null,null,null,null,null,null,null,null,null,null,null,null,null,null,null,null,0,0,0,0]
[null,null,null,null,null,null,null,null,null,null,null,null,null,null,null,null,null,null,null,null,null,null,null,null,null,null,null,null,null,null,null,null,null,null,null,null,null,null,null,null,null,null,null,null,null,null,null,null,null,null,null,null,null,null,null,0,0,0,0]
[null,null,null,null,null,null,null,null,null,null,null,null,null,null,null,null,null,null,null,null,null,null,null,null,null,null,null,null,null,null,null,null,null,null,null,null,null,null,null,null,null,null,null,null,null,null,null,null,null,null,null,null,null,null,null,0,0,0,0]
[null,null,null,null,null,null,null,null,null,null,null,null,null,null,null,null,null,null,null,null,null,null,null,null,null,null,null,null,null,null,null,null,null,null,null,null,null,null,null,null,null,null,null,null,null,null,null,null,null,null,null,null,null,null,null,0,0,0,0]
["Ne rien inscrire dans cette ligne"]
[null,null,null,{"$f":"\"Nombre total de référentiels validés : \"&SUM(J109:BC109)","v":"Nombre total de référentiels validés : 0"},null,null,null,"Validés",null,{"$f":"COUNTIF(J8:J107,1)","v":0},0,0,0,0,0,0,0,0,0,0,0,0,0,0,0,0,0,0,0,0,0,0,0,0,0,0,0,0,0,0,0,0,0,0,0,0,0,0,0,0,null,{"$f":"COUNTIF(AZ8:AZ107,1)","v":0},{"$f":"COUNTIF(BA8:BA107,1)","v":0},{"$f":"COUNTIF(BB8:BB107,1)","v":0}]
[null,null,null,{"$f":"\"Nombre total de référentiels en attente : \"&SUM(J110:BC110)","v":"Nombre total de référentiels en attente : 0"},null,null,null,"En attente",null,{"$f":"COUNTIF(J8:J107,2)","v":0},0,0,0,0,0,0,0,0,0,0,0,0,0,0,0,0,0,0,0,0,0,0,0,0,0,0,0,0,0,0,0,0,0,0,0,0,0,0,0,0,null,{"$f":"COUNTIF(AZ8:AZ107,2)","v":0},{"$f":"COUNTIF(BA8:BA107,2)","v":0},{"$f":"COUNTIF(BB8:BB107,2)","v":0}]
[null,null,null,{"$f":"\"Nombre total de référentiels refusés ou à modifier : \"&SUM(J111:BC111)","v":"Nombre total de référentiels refusés ou à modifier : 0"},null,null,null,"Refus / à modifier",null,{"$f":"COUNTIF(J8:J107,3)","v":0},0,0,0,0,0,0,0,0,0,0,0,0,0,0,0,0,0,0,0,0,0,0,0,0,0,0,0,0,0,0,0,0,0,0,0,0,0,0,0,0,null,{"$f":"COUNTIF(AZ8:AZ107,3)","v":0},{"$f":"COUNTIF(BA8:BA107,3)","v":0},{"$f":"COUNTIF(BB8:BB107,3)","v":0}]
[null,null,null,{"$f":"\"Nombre total de référentiels : \"&SUM(J112:BC112)","v":"Nombre total de référentiels : 0"},null,null,null,"TOTAL",null,{"$f":"SUM(J109:J111)","v":0},{"$f":"SUM(K109:K111)","v":0},0,0,0,0,0,0,0,0,0,0,0,0,0,0,0,0,0,0,0,0,0,0,0,0,0,0,0,0,0,0,0,0,0,0,0,0,0,0,0,null,0,0,0]

{"sheet":"Accueil","index":3,"n_rows":20,"n_cols":11,"rows_kept":20,"cut":false,"hidden":false,"merged":[]}
[]
[]
[]
[]
[]
[]
[]
[]
[]
[]
[]
[]
[]
[]
[]
[]
[]
[]
[]
[null,null,null,null,null,null,null,null,null,null,"version 1.3"]

{"sheet":"Nomenclature_cyclades","index":4,"n_rows":301,"n_cols":12,"rows_kept":301,"cut":false,"hidden":false,"merged":[]}
["BAC GT",{"$f":"COUNTA(I3:I303)","v":294},{"$f":"COUNTA(C3:C301)","v":26},{"$f":"COUNTA(D3:D301)","v":0},{"$f":"COUNTA(E3:E301)","v":0},{"$f":"COUNTIF(F3:F301,\"x\")","v":156},null,"BAC PRO",{"$f":"COUNTA(I3:I303)","v":294},null,"CAP",{"$f":"COUNTA(L3:L298)","v":296}]
["LIBELLE","CODE","Liste NAT","Liste ACA","Liste ETA","Adapté (x)",null,"LIBELLE","CODE",null,"LIBELLE","CODE"]
["CA1-Autre APSA","A456",null,null,null,"n",null,"CA1-Autre APSA","A456",null,"CA1-Autre APSA","A456"]
["CA1-Aviron","A423",null,null,null,"n",null,"CA1-Aviron","A423",null,"CA1-Aviron","A423"]
["CA1-Biathlon","A426",null,null,null,"n",null,"CA1-Biathlon","A426",null,"CA1-Biathlon","A426"]
["CA1-Biathlon athlétique","A425",null,null,null,"n",null,"CA1-Biathlon athlétique","A425",null,"CA1-Biathlon athlétique","A425"]
["CA1-Combiné athlétique","A109",null,null,null,"n",null,"CA1-Combiné athlétique","A109",null,"CA1-Combiné athlétique","A109"]
["CA1-Course de haies","A110",null,null,null,"n",null,"CA1-Course de haies","A110",null,"CA1-Course de haies","A110"]
["CA1-Course de relais","A111",null,null,null,"n",null,"CA1-Course de relais","A111",null,"CA1-Course de relais","A111"]
["CA1-Course de vitesse","A112",null,null,null,"n",null,"CA1-Course de vitesse","A112",null,"CA1-Course de vitesse","A112"]
["CA1-Course demi-fond","A113",null,null,null,"n",null,"CA1-Course demi-fond","A113",null,"CA1-Course demi-fond","A113"]
["CA1-Courses","A114","x",null,null,"n",null,"CA1-Cross training","A115",null,"CA1-Cross training","A115"]
["CA1-Cross training","A115",null,null,null,"n",null,"CA1-Duathlon","A116",null,"CA1-Duathlon","A116"]
["CA1-Duathlon","A116",null,null,null,"n",null,"CA1-Ergo-aviron","A117",null,"CA1-Ergo-aviron","A117"]
["CA1-Ergo-aviron","A117",null,null,null,"n",null,"CA1-Lancer de disque","A118",null,"CA1-Lancer de disque","A118"]
["CA1-Lancer de disque","A118",null,null,null,"n",null,"CA1-Lancer de javelot","A119",null,"CA1-Lancer de javelot","A119"]
["CA1-Lancer de javelot","A119",null,null,null,"n",null,"CA1-Lancer de poids","A120",null,"CA1-Lancer de poids","A120"]
["CA1-Lancer de poids","A120",null,null,null,"n",null,"CA1-Marche","A122",null,"CA1-Marche","A122"]
["CA1-Lancers","A121","x",null,null,"n",null,"CA1-Marche nordique","A428",null,"CA1-Marche nordique","A428"]
["CA1-Laser Run","A485",null,null,null,"n",null,"CA1-Nage avec palmes","A123",null,"CA1-Nage avec palmes","A123"]
["CA1-Marche","A122",null,null,null,"n",null,"CA1-Natation de distance","A466",null,"CA1-Natation de distance","A466"]
["CA1-Marche nordique","A428",null,null,null,"n",null,"CA1-Natation vitesse","A124",null,"CA1-Natation vitesse","A124"]
["CA1-Nage avec palmes","A123",null,null,null,"n",null,"CA1-Planche à voile","A429",null,"CA1-Planche à voile","A429"]
["CA1-Natation de distance","A466",null,null,null,"n",null,"CA1-Roller","A467",null,"CA1-Roller","A467"]
["CA1-Natation vitesse","A124","x",null,null,"n",null,"CA1-Sarbacane","A125",null,"CA1-Sarbacane","A125"]
["CA1-Planche à voile","A429",null,null,null,"n",null,"CA1-Saut à la perche","A468",null,"CA1-Saut à la perche","A468"]
["CA1-Roller","A467",null,null,null,"n",null,"CA1-Saut en hauteur","A126",null,"CA1-Saut en hauteur","A126"]
["CA1-Sarbacane","A125",null,null,null,"n",null,"CA1-Saut en longueur","A127",null,"CA1-Saut en longueur","A127"]
["CA1-Saut à la perche","A468",null,null,null,"n",null,"CA1-Saut en pentabond","A128",null,"CA1-Saut en pentabond","A128"]
["CA1-Saut en hauteur","A126",null,null,null,"n",null,"CA1-Ski alpin","A130",null,"CA1-Ski alpin","A130"]
["CA1-Saut en longueur","A127",null,null,null,"n",null,"CA1-Ski nordique","A431",null,"CA1-Ski nordique","A431"]
["CA1-Saut en pentabond","A128",null,null,null,"n",null,"CA1-Sports de boules","A131",null,"CA1-Sports de boules","A131"]
["CA1-Sauts","A129","x",null,null,"n",null,"CA1-Tir à l'arc","A132",null,"CA1-Tir à l'arc","A132"]
["CA1-Ski alpin","A130",null,null,null,"n",null,"CA1-Triathlon athlétique","A427",null,"CA1-Triathlon athlétique","A427"]
["CA1-Ski nordique","A431",null,null,null,"n",null,"CA1-Triple saut","A469",null,"CA1-Triple saut","A469"]
["CA1-Sports de boules","A131",null,null,null,"n",null,"CA1-Vaa de vitesse","A133",null,"CA1-Vaa de vitesse","A133"]
["CA1-Tir à l'arc","A132",null,null,null,"n",null,"CA2-Activités nautiques","A434",null,"CA2-Activités nautiques","A434"]
["CA1-Triathlon athlétique","A427",null,null,null,"n",null,"CA2-Autre APSA","A457",null,"CA2-Autre APSA","A457"]
["CA1-Triple saut","A469",null,null,null,"n",null,"CA2-Aviron","A134",null,"CA2-Aviron","A134"]
["CA1-Vaa de vitesse","A133",null,null,null,"n",null,"CA2-Biathlon","A135",null,"CA2-Biathlon","A135"]
["CA2-Activités nautiques","A434",null,null,null,"n",null,"CA2-Canoé-kayak - aviron","A136",null,"CA2-Canoé-kayak - aviron","A136"]
["CA2-Autre APSA","A457",null,null,null,"n",null,"CA2-Char à voile","A470",null,"CA2-Char à voile","A470"]
["CA2-Aviron","A134",null,null,null,"n",null,"CA2-Course d'orientation","A137",null,"CA2-Course d'orientation","A137"]
["CA2-Biathlon","A135",null,null,null,"n",null,"CA2-Course tout terrain - trail","A138",null,"CA2-Course tout terrain - trail","A138"]
["CA2-Canoé-kayak - aviron","A136",null,null,null,"n",null,"CA2-Curling","A436",null,"CA2-Curling","A436"]
["CA2-Char à voile","A470",null,null,null,"n",null,"CA2-Equitation","A139",null,"CA2-Equitation","A139"]
["CA2-Course d'orientation","A137","x",null,null,"n",null,"CA2-Escalade","A140",null,"CA2-Escalade","A140"]
["CA2-Course tout terrain - trail","A138",null,null,null,"n",null,"CA2-Glisse sur neige","A141",null,"CA2-Glisse sur neige","A141"]
["CA2-Curling","A436",null,null,null,"n",null,"CA2-Golf","A142",null,"CA2-Golf","A142"]
["CA2-Equitation","A139",null,null,null,"n",null,"CA2-Kayak voile","A143",null,"CA2-Kayak voile","A143"]
["CA2-Escalade","A140","x",null,null,"n",null,"CA2-Parcours aquatique","A144",null,"CA2-Parcours aquatique","A144"]
["CA2-Glisse sur neige","A141",null,null,null,"n",null,"CA2-Pêche","A472",null,"CA2-Pêche","A472"]
["CA2-Golf","A142",null,null,null,"n",null,"CA2-Planche à voile","A435",null,"CA2-Planche à voile","A435"]
["CA2-Kayak voile","A143",null,null,null,"n",null,"CA2-Plongée sous marine","A471",null,"CA2-Plongée sous marine","A471"]
["CA2-Laser Run","A486",null,null,null,"n",null,"CA2-Raid nature multisports","A433",null,"CA2-Raid nature multisports","A433"]
["CA2-Parcours aquatique","A144",null,null,null,"n",null,"CA2-Randonnée","A145",null,"CA2-Randonnée","A145"]
["CA2-Pêche","A472",null,null,null,"n",null,"CA2-Raquettes","A146",null,"CA2-Raquettes","A146"]
["CA2-Planche à voile","A435",null,null,null,"n",null,"CA2-Run and bike","A147",null,"CA2-Run and bike","A147"]
["CA2-Plongée sous marine","A471",null,null,null,"n",null,"CA2-Run-tir","A148",null,"CA2-Run-tir","A148"]
["CA2-Raid nature multisports","A433",null,null,null,"n",null,"CA2-Sauvetage aquatique","A149",null,"CA2-Sauvetage aquatique","A149"]
["CA2-Randonnée","A145",null,null,null,"n",null,"CA2-Savoir-nager","A150",null,"CA2-Savoir-nager","A150"]
["CA2-Raquettes","A146",null,null,null,"n",null,"CA2-Ski de descente","A151",null,"CA2-Ski de descente","A151"]
["CA2-Run and bike","A147",null,null,null,"n",null,"CA2-Ski de fond","A152",null,"CA2-Ski de fond","A152"]
["CA2-Run-tir","A148",null,null,null,"n",null,"CA2-Surf","A432",null,"CA2-Surf","A432"]
["CA2-Sauvetage aquatique","A149","x",null,null,"n",null,"CA2-Triathlon","A153",null,"CA2-Triathlon","A153"]
["CA2-Ski de descente","A151",null,null,null,"n",null,"CA2-Vaa","A154",null,"CA2-Vaa","A154"]
["CA2-Ski de fond","A152",null,null,null,"n",null,"CA2-Vaa de randonnée","A155",null,"CA2-Vaa de randonnée","A155"]
["CA2-Surf","A432",null,null,null,"n",null,"CA2-Voile","A156",null,"CA2-Voile","A156"]
["CA2-Triathlon","A153",null,null,null,"n",null,"CA2-Vtt","A157",null,"CA2-Vtt","A157"]
["CA2-Vaa","A154",null,null,null,"n",null,"CA3-Acrosport","A158",null,"CA3-Acrosport","A158"]
["CA2-Vaa de randonnée","A155",null,null,null,"n",null,"CA3-Aérobic","A159",null,"CA3-Aérobic","A159"]
["CA2-Voile","A156",null,null,null,"n",null,"CA3-Arts du cirque","A160",null,"CA3-Arts du cirque","A160"]
["CA2-Vtt","A157","x",null,null,"n",null,"CA3-Autre APSA","A458",null,"CA3-Autre APSA","A458"]
["CA3-Acrosport","A158","x",null,null,"n",null,"CA3-Cheerleading","A473",null,"CA3-Cheerleading","A473"]
["CA3-Aérobic","A159",null,null,null,"n",null,"CA3-Chore-acro","A437",null,"CA3-Chore-acro","A437"]
["CA3-Arts du cirque","A160","x",null,null,"n",null,"CA3-Danse sur glace","A166",null,"CA3-Danse sur glace","A166"]
["CA3-Autre APSA","A458",null,null,null,"n",null,"CA3-Danse(s)","A161",null,"CA3-Danse(s)","A161"]
["CA3-Cheerleading","A473",null,null,null,"n",null,"CA3-Double dutch","A162",null,"CA3-Double dutch","A162"]
["CA3-Chore-acro","A437",null,null,null,"n",null,"CA3-Gymnastique","A163",null,"CA3-Gymnastique","A163"]
["CA3-Danse sur glace","A166",null,null,null,"n",null,"CA3-Gymnastique rythmique","A474",null,"CA3-Gymnastique rythmique","A474"]
["CA3-Danse(s)","A161","x",null,null,"n",null,"CA3-Jiu jitsu/Kata","A475",null,"CA3-Jiu jitsu/Kata","A475"]
["CA3-Double dutch","A162",null,null,null,"n",null,"CA3-Parkour","A438",null,"CA3-Parkour","A438"]
["CA3-Gymnastique","A163","x",null,null,"n",null,"CA3-Patinage artistique","A165",null,"CA3-Patinage artistique","A165"]
["CA3-Gymnastique rythmique","A474",null,null,null,"n",null,"CA3-Roller/ Skateboard","A476",null,"CA3-Roller/ Skateboard","A476"]
["CA3-Jiu jitsu/Kata","A475",null,null,null,"n",null,"CA3-Step","A167",null,"CA3-Step","A167"]
["CA3-Parkour","A438",null,null,null,"n",null,"CA3-Trampoline","A168",null,"CA3-Trampoline","A168"]
["CA3-Patinage artistique","A165",null,null,null,"n",null,"CA3-Wakeboard","A477",null,"CA3-Wakeboard","A477"]
["CA3-Roller/ Skateboard","A476",null,null,null,"n",null,"CA4-Autre APSA","A459",null,"CA4-Autre APSA","A459"]
["CA3-Step","A167",null,null,null,"n",null,"CA4-Autres arts martiaux","A479",null,"CA4-Autres arts martiaux","A479"]
["CA3-Trampoline","A168",null,null,null,"n",null,"CA4-Badminton","A169",null,"CA4-Badminton","A169"]
["CA3-Wakeboard","A477",null,null,null,"n",null,"CA4-Baseball (softball, cricket ...)","A170",null,"CA4-Baseball (softball, cricket ...)","A170"]
["CA4-Autre APSA","A459",null,null,null,"n",null,"CA4-Basket-ball","A171",null,"CA4-Basket-ball","A171"]
["CA4-Autres arts martiaux","A479",null,null,null,"n",null,"CA4-Boccia","A172",null,"CA4-Boccia","A172"]
["CA4-Badminton","A169","x",null,null,"n",null,"CA4-Boxe française","A173",null,"CA4-Boxe française","A173"]
["CA4-Baseball (softball, cricket ...)","A170",null,null,null,"n",null,"CA4-Dodge ball","A480",null,"CA4-Dodge ball","A480"]
["CA4-Basket-ball","A171","x",null,null,"n",null,"CA4-Escrime","A174",null,"CA4-Escrime","A174"]
["CA4-Boccia","A172",null,null,null,"n",null,"CA4-Foot flag","A175",null,"CA4-Foot flag","A175"]
["CA4-Boxe française","A173","x",null,null,"n",null,"CA4-Football","A176",null,"CA4-Football","A176"]
["CA4-Dodge ball","A480",null,null,null,"n",null,"CA4-Football gaélique","A440",null,"CA4-Football gaélique","A440"]
["CA4-Escrime","A174",null,null,null,"n",null,"CA4-Futsal","A177",null,"CA4-Futsal","A177"]
["CA4-Foot flag","A175",null,null,null,"n",null,"CA4-Gouren","A441",null,"CA4-Gouren","A441"]
["CA4-Football","A176","x",null,null,"n",null,"CA4-Handball","A178",null,"CA4-Handball","A178"]
["CA4-Football gaélique","A440",null,null,null,"n",null,"CA4-Hockey","A179",null,"CA4-Hockey","A179"]
["CA4-Futsal","A177",null,null,null,"n",null,"CA4-Judo","A181",null,"CA4-Jeux de boules","A180"]
["CA4-Gouren","A441",null,null,null,"n",null,"CA4-Karaté ou Taekwondo","A478",null,"CA4-Judo","A181"]
["CA4-Handball","A178","x",null,null,"n",null,"CA4-Kickboxing / Boxe Thai.","A182",null,"CA4-Karaté ou Taekwondo","A478"]
["CA4-Hockey","A179",null,null,null,"n",null,"CA4-Laser run","A183",null,"CA4-Kickboxing / Boxe Thai.","A182"]
["CA4-Jeux de boules","A180",null,null,null,"n",null,"CA4-Lutte","A439",null,"CA4-Laser run","A183"]
["CA4-Judo","A181","x",null,null,"n",null,"CA4-Pelote basque","A184",null,"CA4-Lutte","A439"]
["CA4-Karaté ou Taekwondo","A478",null,null,null,"n",null,"CA4-Petaca","A481",null,"CA4-Pelote basque","A184"]
["CA4-Kickboxing / Boxe Thai.","A182",null,null,null,"n",null,"CA4-Pétanque","A185",null,"CA4-Petaca","A481"]
["CA4-Laser run","A183",null,null,null,"n",null,"CA4-Roller football","A482",null,"CA4-Pétanque","A185"]
["CA4-Lutte","A439",null,null,null,"n",null,"CA4-Rugby","A186",null,"CA4-Roller football","A482"]
["CA4-Pelote basque","A184",null,null,null,"n",null,"CA4-Softball","A187",null,"CA4-Rugby","A186"]
["CA4-Petaca","A481",null,null,null,"n",null,"CA4-Spike ball","A188",null,"CA4-Softball","A187"]
["CA4-Pétanque","A185",null,null,null,"n",null,"CA4-Tchoukball","A483",null,"CA4-Spike ball","A188"]
["CA4-Roller football","A482",null,null,null,"n",null,"CA4-Tennis","A189",null,"CA4-Tchoukball","A483"]
["CA4-Rugby","A186","x",null,null,"n",null,"CA4-Tennis de table","A190",null,"CA4-Tennis","A189"]
["CA4-Softball","A187",null,null,null,"n",null,"CA4-Tennis volley","A191",null,"CA4-Tennis de table","A190"]
["CA4-Spike ball","A188",null,null,null,"n",null,"CA4-Torball","A192",null,"CA4-Tennis volley","A191"]
["CA4-Tchoukball","A483",null,null,null,"n",null,"CA4-Ultimate","A193",null,"CA4-Torball","A192"]
["CA4-Tennis","A189",null,null,null,"n",null,"CA4-Volley-ball","A194",null,"CA4-Ultimate","A193"]
["CA4-Tennis de table","A190","x",null,null,"n",null,"CA4-Water-Polo","A484",null,"CA4-Volley-ball","A194"]
["CA4-Tennis volley","A191",null,null,null,"n",null,"CA5-Aquagym","A195",null,"CA4-Water-Polo","A484"]
["CA4-Torball","A192",null,null,null,"n",null,"CA5-Autre APSA","A460",null,"CA5-Aquagym","A195"]
["CA4-Ultimate","A193",null,null,null,"n",null,"CA5-Cardio fitness","A445",null,"CA5-Autre APSA","A460"]
["CA4-Volley-ball","A194","x",null,null,"n",null,"CA5-Circuit training","A442",null,"CA5-Cardio fitness","A445"]
["CA4-Water-Polo","A484",null,null,null,"n",null,"CA5-Course en duree","A196",null,"CA5-Circuit training","A442"]
["CA5-Aquagym","A195",null,null,null,"n",null,"CA5-Ergo aviron","A443",null,"CA5-Course en duree","A196"]
["CA5-Autre APSA","A460",null,null,null,"n",null,"CA5-Marche","A198",null,"CA5-Ergo aviron","A443"]
["CA5-Cardio fitness","A445",null,null,null,"n",null,"CA5-Marche aquatique","A199",null,"CA5-Marche","A198"]
["CA5-Circuit training","A442",null,null,null,"n",null,"CA5-Marche aquatique cotière","A444",null,"CA5-Marche aquatique","A199"]
["CA5-Course en duree","A196","x",null,null,"n",null,"CA5-Marche nordique","A200",null,"CA5-Marche aquatique cotière","A444"]
["CA5-Cross training","A197",null,null,null,"n",null,"CA5-Musculation","A201",null,"CA5-Marche nordique","A200"]
["CA5-Ergo aviron","A443",null,null,null,"n",null,"CA5-Natation en duree","A202",null,"CA5-Musculation","A201"]
["CA5-Marche","A198",null,null,null,"n",null,"CA5-Renforcement musculaire","A203",null,"CA5-Natation en duree","A202"]
["CA5-Marche aquatique","A199",null,null,null,"n",null,"CA5-Step","A204",null,"CA5-Renforcement musculaire","A203"]
["CA5-Marche aquatique cotière","A444",null,null,null,"n",null,"CA5-Tabata fitness","A205",null,"CA5-Step","A204"]
["CA5-Marche nordique","A200",null,null,null,"n",null,"CA5-Yoga","A206",null,"CA5-Tabata fitness","A205"]
["CA5-Musculation","A201","x",null,null,"n",null,"CA1-Adapté - Autre APSA","H456",null,"CA5-Yoga","A206"]
["CA5-Natation en duree","A202","x",null,null,"n",null,"CA1-Adapté - Demi-fond fauteuil","H446",null,"CA1-Adapté - Autre APSA","H456"]
["CA5-Renforcement musculaire","A203",null,null,null,"n",null,"CA1-Adapté- Cardio fléchettes","H454",null,"CA1-Adapté - Demi-fond fauteuil","H446"]
["CA5-Step","A204","x",null,null,"n",null,"CA1-Adapté-Biathlon","H426",null,"CA1-Adapté- Cardio fléchettes","H454"]
["CA5-Tabata fitness","A205",null,null,null,"n",null,"CA1-Adapté-Biathlon athlétique","H425",null,"CA1-Adapté-Biathlon","H426"]
["CA5-Yoga","A206","x",null,null,"n",null,"CA1-Adapté-combiné athlétique","H207",null,"CA1-Adapté-Biathlon athlétique","H425"]
["CA1-Adapté - Autre APSA","H456",null,null,null,"x",null,"CA1-Adapté-course de haies","H208",null,"CA1-Adapté-combiné athlétique","H207"]
["CA1-Adapté - Demi-fond fauteuil","H446",null,null,null,"x",null,"CA1-Adapté-course de relais","H209",null,"CA1-Adapté-course de haies","H208"]
["CA1-Adapté- Cardio fléchettes","H454",null,null,null,"x",null,"CA1-Adapté-course de vitesse","H210",null,"CA1-Adapté-course de relais","H209"]
["CA1-Adapté-Biathlon","H426",null,null,null,"x",null,"CA1-Adapté-course demi-fond","H211",null,"CA1-Adapté-course de vitesse","H210"]
["CA1-Adapté-Biathlon athlétique","H425",null,null,null,"x",null,"CA1-Adapté-Courses","H114",null,"CA1-Adapté-course demi-fond","H211"]
["CA1-Adapté-combiné athlétique","H207",null,null,null,"x",null,"CA1-Adapté-Cross fitness","H430",null,"CA1-Adapté-Courses","H114"]
["CA1-Adapté-course de haies","H208",null,null,null,"x",null,"CA1-Adapté-cross training","H212",null,"CA1-Adapté-Cross fitness","H430"]
["CA1-Adapté-course de relais","H209",null,null,null,"x",null,"CA1-Adapté-duathlon","H213",null,"CA1-Adapté-cross training","H212"]
["CA1-Adapté-course de vitesse","H210",null,null,null,"x",null,"CA1-Adapté-ergo-aviron","H214",null,"CA1-Adapté-duathlon","H213"]
["CA1-Adapté-course demi-fond","H211",null,null,null,"x",null,"CA1-Adapté-Fléchettes","H451",null,"CA1-Adapté-ergo-aviron","H214"]
["CA1-Adapté-Courses","H114",null,null,null,"x",null,"CA1-Adapté-Lancer","H121",null,"CA1-Adapté-Fléchettes","H451"]
["CA1-Adapté-Cross fitness","H430",null,null,null,"x",null,"CA1-Adapté-lancer de disque","H215",null,"CA1-Adapté-Lancer","H121"]
["CA1-Adapté-cross training","H212",null,null,null,"x",null,"CA1-Adapté-lancer de javelot","H216",null,"CA1-Adapté-lancer de disque","H215"]
["CA1-Adapté-duathlon","H213",null,null,null,"x",null,"CA1-Adapté-lancer de poids","H217",null,"CA1-Adapté-lancer de javelot","H216"]
["CA1-Adapté-ergo-aviron","H214",null,null,null,"x",null,"CA1-Adapté-Lancer de précision","H450",null,"CA1-Adapté-lancer de poids","H217"]
["CA1-Adapté-Fléchettes","H451",null,null,null,"x",null,"CA1-Adapté-marche","H218",null,"CA1-Adapté-Lancer de précision","H450"]
["CA1-Adapté-lancer de disque","H215",null,null,null,"x",null,"CA1-Adapté-Marche nordique","H428",null,"CA1-Adapté-marche","H218"]
["CA1-Adapté-lancer de javelot","H216",null,null,null,"x",null,"CA1-Adapté-nage avec palmes","H219",null,"CA1-Adapté-Marche nordique","H428"]
["CA1-Adapté-lancer de poids","H217",null,null,null,"x",null,"CA1-Adapté-Natation de distance","H466",null,"CA1-Adapté-nage avec palmes","H219"]
["CA1-Adapté-Lancer de précision","H450",null,null,null,"x",null,"CA1-Adapté-natation vitesse","H220",null,"CA1-Adapté-Natation de distance","H466"]
["CA1-Adapté-marche","H218",null,null,null,"x",null,"CA1-Adapté-Parcours fauteuil","H461",null,"CA1-Adapté-natation vitesse","H220"]
["CA1-Adapté-Marche nordique","H428",null,null,null,"x",null,"CA1-Adapté-Planche à voile","H429",null,"CA1-Adapté-Parcours fauteuil","H461"]
["CA1-Adapté-nage avec palmes","H219",null,null,null,"x",null,"CA1-Adapté-Roller","H467",null,"CA1-Adapté-Planche à voile","H429"]
["CA1-Adapté-Natation de distance","H466",null,null,null,"x",null,"CA1-Adapté-sarbacane","H221",null,"CA1-Adapté-Roller","H467"]
["CA1-Adapté-natation vitesse","H220",null,null,null,"x",null,"CA1-Adapté-Saut à la perche","H468",null,"CA1-Adapté-sarbacane","H221"]
["CA1-Adapté-Parcours fauteuil","H461",null,null,null,"x",null,"CA1-Adapté-saut en hauteur","H222",null,"CA1-Adapté-Saut à la perche","H468"]
["CA1-Adapté-Planche à voile","H429",null,null,null,"x",null,"CA1-Adapté-saut en longueur","H223",null,"CA1-Adapté-saut en hauteur","H222"]
["CA1-Adapté-Roller","H467",null,null,null,"x",null,"CA1-Adapté-saut en pentabond","H224",null,"CA1-Adapté-saut en longueur","H223"]
["CA1-Adapté-sarbacane","H221",null,null,null,"x",null,"CA1-Adapté-Sauts","H129",null,"CA1-Adapté-saut en pentabond","H224"]
["CA1-Adapté-Saut à la perche","H468",null,null,null,"x",null,"CA1-Adapté-ski alpin","H225",null,"CA1-Adapté-Sauts","H129"]
["CA1-Adapté-saut en hauteur","H222",null,null,null,"x",null,"CA1-Adapté-Ski nordique","H431",null,"CA1-Adapté-ski alpin","H225"]
["CA1-Adapté-saut en longueur","H223",null,null,null,"x",null,"CA1-Adapté-sports de boules","H226",null,"CA1-Adapté-Ski nordique","H431"]
["CA1-Adapté-saut en pentabond","H224",null,null,null,"x",null,"CA1-Adapté-tir a l'arc","H227",null,"CA1-Adapté-sports de boules","H226"]
["CA1-Adapté-Sauts","H129",null,null,null,"x",null,"CA1-Adapté-Triathlon athlétique","H427",null,"CA1-Adapté-tir a l'arc","H227"]
["CA1-Adapté-ski alpin","H225",null,null,null,"x",null,"CA1-Adapté-Triple saut","H469",null,"CA1-Adapté-Triathlon athlétique","H427"]
["CA1-Adapté-Ski nordique","H431",null,null,null,"x",null,"CA1-Adapté-vaa de vitesse","H228",null,"CA1-Adapté-Triple saut","H469"]
["CA1-Adapté-sports de boules","H226",null,null,null,"x",null,"CA2-Adapté - Autre APSA","H457",null,"CA1-Adapté-vaa de vitesse","H228"]
["CA1-Adapté-tir a l'arc","H227",null,null,null,"x",null,"CA2-Adapté-Activités nautiques","H434",null,"CA2-Adapté - Autre APSA","H457"]
["CA1-Adapté-Triathlon athlétique","H427",null,null,null,"x",null,"CA2-Adapté-aviron","H229",null,"CA2-Adapté-Activités nautiques","H434"]
["CA1-Adapté-vaa de vitesse","H228",null,null,null,"x",null,"CA2-Adapté-biathlon","H230",null,"CA2-Adapté-aviron","H229"]
["CA2-Adapté - Autre APSA","H457",null,null,null,"x",null,"CA2-Adapté-canoe-kayak - aviron","H231",null,"CA2-Adapté-biathlon","H230"]
["CA2-Adapté-Activités nautiques","H434",null,null,null,"x",null,"CA2-Adapté-Char à voile","H470",null,"CA2-Adapté-canoe-kayak - aviron","H231"]
["CA2-Adapté-aviron","H229",null,null,null,"x",null,"CA2-Adapté-course d'orientation","H232",null,"CA2-Adapté-Char à voile","H470"]
["CA2-Adapté-biathlon","H230",null,null,null,"x",null,"CA2-Adapté-course tout terrain - trail","H233",null,"CA2-Adapté-course d'orientation","H232"]
["CA2-Adapté-canoe-kayak - aviron","H231",null,null,null,"x",null,"CA2-Adapté-Curling","H436",null,"CA2-Adapté-course tout terrain - trail","H233"]
["CA2-Adapté-Char à voile","H470",null,null,null,"x",null,"CA2-Adapté-equitation","H234",null,"CA2-Adapté-Curling","H436"]
["CA2-Adapté-course d'orientation","H232",null,null,null,"x",null,"CA2-Adapté-escalade","H235",null,"CA2-Adapté-equitation","H234"]
["CA2-Adapté-course tout terrain - trail","H233",null,null,null,"x",null,"CA2-Adapté-glisse sur neige","H236",null,"CA2-Adapté-escalade","H235"]
["CA2-Adapté-Curling","H436",null,null,null,"x",null,"CA2-Adapté-golf","H237",null,"CA2-Adapté-glisse sur neige","H236"]
["CA2-Adapté-equitation","H234",null,null,null,"x",null,"CA2-Adapté-kayak voile","H238",null,"CA2-Adapté-golf","H237"]
["CA2-Adapté-escalade","H235",null,null,null,"x",null,"CA2-Adapté-parcours aquatique","H239",null,"CA2-Adapté-kayak voile","H238"]
["CA2-Adapté-glisse sur neige","H236",null,null,null,"x",null,"CA2-Adapté-Parcours fauteuil","H462",null,"CA2-Adapté-parcours aquatique","H239"]
["CA2-Adapté-golf","H237",null,null,null,"x",null,"CA2-Adapté-Pêche","H472",null,"CA2-Adapté-Parcours fauteuil","H462"]
["CA2-Adapté-kayak voile","H238",null,null,null,"x",null,"CA2-Adapté-Planche à voile","H435",null,"CA2-Adapté-Pêche","H472"]
["CA2-Adapté-parcours aquatique","H239",null,null,null,"x",null,"CA2-Adapté-Plongée sous marine","H471",null,"CA2-Adapté-Planche à voile","H435"]
["CA2-Adapté-Parcours fauteuil","H462",null,null,null,"x",null,"CA2-Adapté-Raid nature multisports","H433",null,"CA2-Adapté-Plongée sous marine","H471"]
["CA2-Adapté-Pêche","H472",null,null,null,"x",null,"CA2-Adapté-randonnée","H240",null,"CA2-Adapté-Raid nature multisports","H433"]
["CA2-Adapté-Planche à voile","H435",null,null,null,"x",null,"CA2-Adapté-raquettes","H241",null,"CA2-Adapté-randonnée","H240"]
["CA2-Adapté-Plongée sous marine","H471",null,null,null,"x",null,"CA2-Adapté-run and bike","H242",null,"CA2-Adapté-raquettes","H241"]
["CA2-Adapté-Raid nature multisports","H433",null,null,null,"x",null,"CA2-Adapté-run-tir","H243",null,"CA2-Adapté-run and bike","H242"]
["CA2-Adapté-randonnée","H240",null,null,null,"x",null,"CA2-Adapté-sauvetage aquatique","H244",null,"CA2-Adapté-run-tir","H243"]
["CA2-Adapté-raquettes","H241",null,null,null,"x",null,"CA2-Adapté-savoir-nager","H245",null,"CA2-Adapté-sauvetage aquatique","H244"]
["CA2-Adapté-run and bike","H242",null,null,null,"x",null,"CA2-Adapté-ski","H246",null,"CA2-Adapté-savoir-nager","H245"]
["CA2-Adapté-run-tir","H243",null,null,null,"x",null,"CA2-Adapté-Ski de descente","H151",null,"CA2-Adapté-ski","H246"]
["CA2-Adapté-sauvetage aquatique","H244",null,null,null,"x",null,"CA2-Adapté-ski de fond","H247",null,"CA2-Adapté-Ski de descente","H151"]
["CA2-Adapté-savoir-nager","H245",null,null,null,"x",null,"CA2-Adapté-Surf","H432",null,"CA2-Adapté-ski de fond","H247"]
["CA2-Adapté-ski","H246",null,null,null,"x",null,"CA2-Adapté-triathlon","H248",null,"CA2-Adapté-Surf","H432"]
["CA2-Adapté-Ski de descente","H151",null,null,null,"x",null,"CA2-Adapté-vaa","H249",null,"CA2-Adapté-triathlon","H248"]
["CA2-Adapté-ski de fond","H247",null,null,null,"x",null,"CA2-Adapté-vaa de randonnée","H250",null,"CA2-Adapté-vaa","H249"]
["CA2-Adapté-Surf","H432",null,null,null,"x",null,"CA2-Adapté-voile","H251",null,"CA2-Adapté-vaa de randonnée","H250"]
["CA2-Adapté-triathlon","H248",null,null,null,"x",null,"CA2-Adapté-vtt","H252",null,"CA2-Adapté-voile","H251"]
["CA2-Adapté-vaa","H249",null,null,null,"x",null,"CA3-Adapté - Autre APSA","H458",null,"CA2-Adapté-vtt","H252"]
["CA2-Adapté-vaa de randonnée","H250",null,null,null,"x",null,"CA3-Adapté-acrosport","H253",null,"CA3-Adapté - Autre APSA","H458"]
["CA2-Adapté-voile","H251",null,null,null,"x",null,"CA3-Adapté-aerobic","H254",null,"CA3-Adapté-acrosport","H253"]
["CA2-Adapté-vtt","H252",null,null,null,"x",null,"CA3-Adapté-arts du cirque","H255",null,"CA3-Adapté-aerobic","H254"]
["CA3-Adapté - Autre APSA","H458",null,null,null,"x",null,"CA3-Adapté-Cheerleading","H473",null,"CA3-Adapté-arts du cirque","H255"]
["CA3-Adapté-acrosport","H253",null,null,null,"x",null,"CA3-Adapté-Choré-acro","H437",null,"CA3-Adapté-Cheerleading","H473"]
["CA3-Adapté-aerobic","H254",null,null,null,"x",null,"CA3-Adapté-Danse sur glace","H166",null,"CA3-Adapté-Choré-acro","H437"]
["CA3-Adapté-arts du cirque","H255",null,null,null,"x",null,"CA3-Adapté-danse(s)","H256",null,"CA3-Adapté-Danse sur glace","H166"]
["CA3-Adapté-Cheerleading","H473",null,null,null,"x",null,"CA3-Adapté-double dutch","H257",null,"CA3-Adapté-danse(s)","H256"]
["CA3-Adapté-Choré-acro","H437",null,null,null,"x",null,"CA3-Adapté-gymnastique","H258",null,"CA3-Adapté-double dutch","H257"]
["CA3-Adapté-Danse sur glace","H166",null,null,null,"x",null,"CA3-Adapté-Gymnastique rythmique","H474",null,"CA3-Adapté-gymnastique","H258"]
["CA3-Adapté-danse(s)","H256",null,null,null,"x",null,"CA3-Adapté-Jiu jitsu/Kata","H475",null,"CA3-Adapté-Gymnastique rythmique","H474"]
["CA3-Adapté-double dutch","H257",null,null,null,"x",null,"CA3-Adapté-Parcours fauteuil","H463",null,"CA3-Adapté-Jiu jitsu/Kata","H475"]
["CA3-Adapté-gymnastique","H258",null,null,null,"x",null,"CA3-Adapté-Parkpour","H438",null,"CA3-Adapté-mini trampoline","H259"]
["CA3-Adapté-Gymnastique rythmique","H474",null,null,null,"x",null,"CA3-Adapté-patinage","H260",null,"CA3-Adapté-Parcours fauteuil","H463"]
["CA3-Adapté-Jiu jitsu/Kata","H475",null,null,null,"x",null,"CA3-Adapté-Patinage artistique","H165",null,"CA3-Adapté-Parkpour","H438"]
["CA3-Adapté-mini trampoline","H259",null,null,null,"x",null,"CA3-Adapté-Projet artistique","H453",null,"CA3-Adapté-patinage","H260"]
["CA3-Adapté-Parcours fauteuil","H463",null,null,null,"x",null,"CA3-Adapté-Roller/ Skateboard","H476",null,"CA3-Adapté-Patinage artistique","H165"]
["CA3-Adapté-Parkpour","H438",null,null,null,"x",null,"CA3-Adapté-step","H262",null,"CA3-Adapté-Projet artistique","H453"]
["CA3-Adapté-patinage","H260",null,null,null,"x",null,"CA3-Adapté-trampoline","H263",null,"CA3-Adapté-Roller/ Skateboard","H476"]
["CA3-Adapté-Patinage artistique","H165",null,null,null,"x",null,"CA3-Adapté-Wakeboard","H477",null,"CA3-Adapté-step","H262"]
["CA3-Adapté-Projet artistique","H453",null,null,null,"x",null,"CA4-Adapté - Autre APSA","H459",null,"CA3-Adapté-trampoline","H263"]
["CA3-Adapté-Roller/ Skateboard","H476",null,null,null,"x",null,"CA4-Adapté-Autres arts martiaux","H479",null,"CA3-Adapté-Wakeboard","H477"]
["CA3-Adapté-step","H262",null,null,null,"x",null,"CA4-Adapté-badminton","H264",null,"CA4-Adapté - Autre APSA","H459"]
["CA3-Adapté-trampoline","H263",null,null,null,"x",null,"CA4-Adapté-baseball (softball, cricket)","H265",null,"CA4-Adapté-Autres arts martiaux","H479"]
["CA3-Adapté-Wakeboard","H477",null,null,null,"x",null,"CA4-Adapté-basket-ball","H266",null,"CA4-Adapté-badminton","H264"]
["CA4-Adapté - Autre APSA","H459",null,null,null,"x",null,"CA4-Adapté-boccia","H267",null,"CA4-Adapté-baseball (softball, cricket)","H265"]
["CA4-Adapté-Autres arts martiaux","H479",null,null,null,"x",null,"CA4-Adapté-boxe francaise","H268",null,"CA4-Adapté-basket-ball","H266"]
["CA4-Adapté-badminton","H264",null,null,null,"x",null,"CA4-Adapté-Dodge ball","H480",null,"CA4-Adapté-boccia","H267"]
["CA4-Adapté-baseball (softball, cricket)","H265",null,null,null,"x",null,"CA4-Adapté-escrime","H269",null,"CA4-Adapté-boxe francaise","H268"]
["CA4-Adapté-basket-ball","H266",null,null,null,"x",null,"CA4-Adapté-foot flag","H270",null,"CA4-Adapté-Dodge ball","H480"]
["CA4-Adapté-boccia","H267",null,null,null,"x",null,"CA4-Adapté-football","H271",null,"CA4-Adapté-escrime","H269"]
["CA4-Adapté-boxe francaise","H268",null,null,null,"x",null,"CA4-Adapté-Football gaélique","H440",null,"CA4-Adapté-foot flag","H270"]
["CA4-Adapté-Dodge ball","H480",null,null,null,"x",null,"CA4-Adapté-futsal","H272",null,"CA4-Adapté-football","H271"]
["CA4-Adapté-escrime","H269",null,null,null,"x",null,"CA4-Adapté-Gouren","H441",null,"CA4-Adapté-Football gaélique","H440"]
["CA4-Adapté-foot flag","H270",null,null,null,"x",null,"CA4-Adapté-handball","H273",null,"CA4-Adapté-futsal","H272"]
["CA4-Adapté-football","H271",null,null,null,"x",null,"CA4-Adapté-hockey","H274",null,"CA4-Adapté-Gouren","H441"]
["CA4-Adapté-Football gaélique","H440",null,null,null,"x",null,"CA4-Adapté-jeux de boules","H275",null,"CA4-Adapté-handball","H273"]
["CA4-Adapté-futsal","H272",null,null,null,"x",null,"CA4-Adapté-judo","H276",null,"CA4-Adapté-hockey","H274"]
["CA4-Adapté-Gouren","H441",null,null,null,"x",null,"CA4-Adapté-Karaté ou Taekwondo","H478",null,"CA4-Adapté-jeux de boules","H275"]
["CA4-Adapté-handball","H273",null,null,null,"x",null,"CA4-Adapté-kickboxing","H277",null,"CA4-Adapté-judo","H276"]
["CA4-Adapté-hockey","H274",null,null,null,"x",null,"CA4-Adapté-Kickboxing/boxe thai","H182",null,"CA4-Adapté-Karaté ou Taekwondo","H478"]
["CA4-Adapté-jeux de boules","H275",null,null,null,"x",null,"CA4-Adapté-laser run","H278",null,"CA4-Adapté-kickboxing","H277"]
["CA4-Adapté-judo","H276",null,null,null,"x",null,"CA4-Adapté-Lutte","H439",null,"CA4-Adapté-Kickboxing/boxe thai","H182"]
["CA4-Adapté-Karaté ou Taekwondo","H478",null,null,null,"x",null,"CA4-Adapté-Parcours fauteuil","H464",null,"CA4-Adapté-laser run","H278"]
["CA4-Adapté-kickboxing","H277",null,null,null,"x",null,"CA4-Adapté-pelote basque","H279",null,"CA4-Adapté-Lutte","H439"]
["CA4-Adapté-Kickboxing/boxe thai","H182",null,null,null,"x",null,"CA4-Adapté-Petaca","H481",null,"CA4-Adapté-Parcours fauteuil","H464"]
["CA4-Adapté-laser run","H278",null,null,null,"x",null,"CA4-Adapté-pétanque","H280",null,"CA4-Adapté-pelote basque","H279"]
["CA4-Adapté-Lutte","H439",null,null,null,"x",null,"CA4-Adapté-Roller football","H482",null,"CA4-Adapté-Petaca","H481"]
["CA4-Adapté-Parcours fauteuil","H464",null,null,null,"x",null,"CA4-Adapté-rugby","H281",null,"CA4-Adapté-pétanque","H280"]
["CA4-Adapté-pelote basque","H279",null,null,null,"x",null,"CA4-Adapté-softball","H282",null,"CA4-Adapté-Roller football","H482"]
["CA4-Adapté-Petaca","H481",null,null,null,"x",null,"CA4-Adapté-spike ball","H283",null,"CA4-Adapté-rugby","H281"]
["CA4-Adapté-pétanque","H280",null,null,null,"x",null,"CA4-Adapté-Tchoukball","H483",null,"CA4-Adapté-softball","H282"]
["CA4-Adapté-Roller football","H482",null,null,null,"x",null,"CA4-Adapté-tennis","H284",null,"CA4-Adapté-spike ball","H283"]
["CA4-Adapté-rugby","H281",null,null,null,"x",null,"CA4-Adapté-tennis de table","H285",null,"CA4-Adapté-Tchoukball","H483"]
["CA4-Adapté-softball","H282",null,null,null,"x",null,"CA4-Adapté-tennis volley","H286",null,"CA4-Adapté-tennis","H284"]
["CA4-Adapté-spike ball","H283",null,null,null,"x",null,"CA4-Adapté-torball","H287",null,"CA4-Adapté-tennis de table","H285"]
["CA4-Adapté-Tchoukball","H483",null,null,null,"x",null,"CA4-Adapté-ultimate","H288",null,"CA4-Adapté-tennis volley","H286"]
["CA4-Adapté-tennis","H284",null,null,null,"x",null,"CA4-Adapté-volley-ball","H289",null,"CA4-Adapté-torball","H287"]
["CA4-Adapté-tennis de table","H285",null,null,null,"x",null,"CA4-Adapté-Water-Polo","H484",null,"CA4-Adapté-ultimate","H288"]
["CA4-Adapté-tennis volley","H286",null,null,null,"x",null,"CA5-Adapté - Autre APSA","H460",null,"CA4-Adapté-volley-ball","H289"]
["CA4-Adapté-torball","H287",null,null,null,"x",null,"CA5-Adapté- Stretching postural","H452",null,"CA4-Adapté-Water-Polo","H484"]
["CA4-Adapté-ultimate","H288",null,null,null,"x",null,"CA5-Adapté-aquagym","H290",null,"CA5-Adapté - Autre APSA","H460"]
["CA4-Adapté-volley-ball","H289",null,null,null,"x",null,"CA5-Adapté-Cardio fitness","H445",null,"CA5-Adapté- Stretching postural","H452"]
["CA4-Adapté-Water-Polo","H484",null,null,null,"x",null,"CA5-Adapté-Circuit training","H442",null,"CA5-Adapté-aquagym","H290"]
["CA5-Adapté - Autre APSA","H460",null,null,null,"x",null,"CA5-Adapté-course en duree","H291",null,"CA5-Adapté-Cardio fitness","H445"]
["CA5-Adapté- Stretching postural","H452",null,null,null,"x",null,"CA5-Adapté-Entretien physique","H448",null,"CA5-Adapté-Circuit training","H442"]
["CA5-Adapté-aquagym","H290",null,null,null,"x",null,"CA5-Adapté-Ergo aviron","H485",null,"CA5-Adapté-course en duree","H291"]
["CA5-Adapté-Cardio fitness","H445",null,null,null,"x",null,"CA5-Adapté-marche","H293",null,"CA5-Adapté-Entretien physique","H448"]
["CA5-Adapté-Circuit training","H442",null,null,null,"x",null,"CA5-Adapté-marche aquatique","H294",null,"CA5-Adapté-Ergo aviron","H485"]
["CA5-Adapté-course en duree","H291",null,null,null,"x",null,"CA5-Adapté-Marche aquatique cotière","H444",null,"CA5-Adapté-marche","H293"]
["CA5-Adapté-Entretien physique","H448",null,null,null,"x",null,"CA5-Adapté-Marche nordique","H447",null,"CA5-Adapté-marche aquatique","H294"]
["CA5-Adapté-Ergo aviron","H485",null,null,null,"x",null,"CA5-Adapté-musculation","H296",null,"CA5-Adapté-Marche aquatique cotière","H444"]
["CA5-Adapté-marche","H293",null,null,null,"x",null,"CA5-Adapté-natation en duree","H297",null,"CA5-Adapté-Marche nordique","H447"]
["CA5-Adapté-marche aquatique","H294",null,null,null,"x",null,"CA5-Adapté-Parcours fauteuil","H465",null,"CA5-Adapté-musculation","H296"]
["CA5-Adapté-Marche aquatique cotière","H444",null,null,null,"x",null,"CA5-Adapté-Relaxation","H449",null,"CA5-Adapté-natation en duree","H297"]
["CA5-Adapté-Marche nordique","H447",null,null,null,"x",null,"CA5-Adapté-renforcement musculaire","H298",null,"CA5-Adapté-Parcours fauteuil","H465"]
["CA5-Adapté-musculation","H296",null,null,null,"x",null,"CA5-Adapté-step","H299",null,"CA5-Adapté-Relaxation","H449"]
["CA5-Adapté-natation en duree","H297",null,null,null,"x",null,"CA5-Adapté-tabata fitness","H300",null,"CA5-Adapté-renforcement musculaire","H298"]
["CA5-Adapté-Parcours fauteuil","H465",null,null,null,"x",null,"CA5-Adapté-yoga","H301",null,"CA5-Adapté-step","H299"]
["CA5-Adapté-Relaxation","H449",null,null,null,"x",null,null,null,null,"CA5-Adapté-tabata fitness","H300"]
["CA5-Adapté-renforcement musculaire","H298",null,null,null,"x",null,null,null,null,"CA5-Adapté-yoga","H301"]
["CA5-Adapté-step","H299",null,null,null,"x"]
["CA5-Adapté-tabata fitness","H300",null,null,null,"x"]
["CA5-Adapté-yoga","H301",null,null,null,"x"]

{"sheet":"APSA BAC GT CYCL.","index":5,"n_rows":5,"n_cols":5,"rows_kept":5,"cut":false,"hidden":false,"merged":[[1,0,3,1],[1,4,2,4]]}
[null,null,"BAC GT"]
["BAC GT",null,null,null,"TOT. APSA"]
[null,null,"Nb Etab : "]
[null,null,"Nb col ''APSA'' :"]
["DEP","Type","Etablissement","UAI","Nb APSA"]

{"sheet":"APSA BAC PRO CYCL.","index":6,"n_rows":5,"n_cols":5,"rows_kept":5,"cut":false,"hidden":false,"merged":[[1,0,3,1],[1,4,2,4]]}
[null,null,"BAC PRO"]
["BAC PRO",null,null,null,"TOT. APSA"]
[null,null,"Nb Etab : "]
[null,null,"Nb col ''APSA'' :"]
["DEP","Type","Etablissement","UAI","Nb APSA"]

{"sheet":"APSA CAP CYCL.","index":7,"n_rows":5,"n_cols":5,"rows_kept":5,"cut":false,"hidden":false,"merged":[[1,0,3,1],[1,4,2,4]]}
[null,null,"CAP"]
["CAP",null,null,null,"TOT. APSA"]
[null,null,"Nb Etab : "]
[null,null,"Nb col ''APSA'' :"]
["DEP","Type","Etablissement","UAI","Nb APSA"]